Workbook

Sheet +NZD
AH2: Pair | AI2: BUY | AJ2: SELL
B3: AUDCAD | C3: AUDJPY | D3: AUDNZD | E3: AUDUSD | F3: CADCHF | G3: CADJPY | H3: CHFJPY | I3: EURAUD | J3: EURCAD | K3: EURCHF | L3: EURGBP | M3: EURJPY | N3: GBPCAD | O3: GBPAUD | P3: GBPNZD | Q3: GBPCHF | R3: GBPJPY | S3: GBPUSD | T3: NZDJPY | U3: NZDUSD | V3: USDCAD | W3: USDCHF | X3: USDJPY | Y3: AUDCHF | Z3: EURUSD | AA3: EURNZD | AB3: NZDCAD | AC3: NZDCHF | AH3: AUDCAD | AI3: =HLOOKUP(LEFT(AH3,3),$C$17:$J$18,2,FALSE) -> 5.142857143 | AJ3: =HLOOKUP(RIGHT(AH3,3),$C$17:$J$18,2,FALSE) -> 3.857142857
A4: High | B4: =[1]!AUDCAD -> 1.03537 | C4: =[1]!AUDJPY -> 92.468 | D4: =[1]!AUDNZD -> 1.26802 | E4: =[1]!AUDUSD -> 1.04864 | F4: =[1]!CADCHF -> 0.94119 | G4: =[1]!CADJPY -> 89.629 | H4: =[1]!CHFJPY -> 95.496 | I4: =[1]!EURAUD -> 1.25152 | J4: =[1]!EURCAD -> 1.2916 | K4: =[1]!EURCHF -> 1.20934 | L4: =[1]!EURGBP -> 0.81426 | M4: =[1]!EURJPY -> 115.398 | N4: =[1]!GBPCAD -> 1.59135 | O4: =[1]!GBPAUD -> 1.5413 | P4: =[1]!GBPNZD -> 1.95383 | Q4: =[1]!GBPCHF -> 1.49266 | R4: =[1]!GBPJPY -> 141.805 | S4: =[1]!GBPUSD -> 1.60877 | T4: =[1]!NZDJPY -> 73.372 | U4: =[1]!NZDUSD -> 0.83225 | V4: =[1]!USDCAD -> 0.99223 | W4: =[1]!USDCHF -> 0.93023 | X4: =[1]!USDJPY -> 88.4 | Y4: =[1]!AUDCHF -> 0.97087 | Z4: =[1]!EURUSD -> 1.30886 | AA4: =[1]!EURNZD -> 1.58406 | AB4: =[1]!NZDCAD -> 0.82167 | AC4: =[1]!NZDCHF -> 0.76902 | AH4: AUDJPY | AI4: =HLOOKUP(LEFT(AH4,3),$C$17:$J$18,2,FALSE) -> 5.142857143 | AJ4: =HLOOKUP(RIGHT(AH4,3),$C$17:$J$18,2,FALSE) -> 2
A5: Ask | B5: =[2]!AUDCAD -> 1.03508 | C5: =[2]!AUDJPY -> 92.444 | D5: =[2]!AUDNZD -> 1.26004 | E5: =[2]!AUDUSD -> 1.04811 | F5: =[2]!CADCHF -> 0.93668 | G5: =[2]!CADJPY -> 89.291 | H5: =[2]!CHFJPY -> 95.405 | I5: =[2]!EURAUD -> 1.2477 | J5: =[2]!EURCAD -> 1.29099 | K5: =[2]!EURCHF -> 1.20866 | L5: =[2]!EURGBP -> 0.81344 | M5: =[2]!EURJPY -> 115.271 | N5: =[2]!GBPCAD -> 1.58724 | O5: =[2]!GBPAUD -> 1.53405 | P5: =[2]!GBPNZD -> 1.93255 | Q5: =[2]!GBPCHF -> 1.48647 | R5: =[2]!GBPJPY -> 141.764 | S5: =[2]!GBPUSD -> 1.60704 | T5: =[2]!NZDJPY -> 73.392 | U5: =[2]!NZDUSD -> 0.83211 | V5: =[2]!USDCAD -> 0.98779 | W5: =[2]!USDCHF -> 0.92532 | X5: =[2]!USDJPY -> 88.179 | Y5: =[2]!AUDCHF -> 0.9699 | Z5: =[2]!EURUSD -> 1.30709 | AA5: =[2]!EURNZD -> 1.57194 | AB5: =[2]!NZDCAD -> 0.82186 | AC5: =[2]!NZDCHF -> 0.76951 | AE5: 0 | AF5: 0 | AH5: AUDNZD | AI5: 5.142857143 | AJ5: 6.714285714
A6: Bid | B6: =[3]!AUDCAD -> 1.03445 | C6: =[3]!AUDJPY -> 92.342 | D6: =[3]!AUDNZD -> 1.25945 | E6: =[3]!AUDUSD -> 1.04772 | F6: =[3]!CADCHF -> 0.93573 | G6: =[3]!CADJPY -> 89.244 | H6: =[3]!CHFJPY -> 95.284 | I6: =[3]!EURAUD -> 1.24641 | J6: =[3]!EURCAD -> 1.2904 | K6: =[3]!EURCHF -> 1.20825 | L6: =[3]!EURGBP -> 0.81307 | M6: =[3]!EURJPY -> 115.154 | N6: =[3]!GBPCAD -> 1.58651 | O6: =[3]!GBPAUD -> 1.53269 | P6: =[3]!GBPNZD -> 1.93037 | Q6: =[3]!GBPCHF -> 1.485 | R6: =[3]!GBPJPY -> 141.619 | S6: =[3]!GBPUSD -> 1.60663 | T6: =[3]!NZDJPY -> 73.28 | U6: =[3]!NZDUSD -> 0.8316 | V6: =[3]!USDCAD -> 0.98736 | W6: =[3]!USDCHF -> 0.92422 | X6: =[3]!USDJPY -> 88.144 | Y6: =[3]!AUDCHF -> 0.96829 | Z6: =[3]!EURUSD -> 1.30668 | AA6: =[3]!EURNZD -> 1.57039 | AB6: =[3]!NZDCAD -> 0.82108 | AC6: =[3]!NZDCHF -> 0.76867 | AE6: 3 | AF6: 1 | AH6: AUDUSD | AI6: 5.142857143 | AJ6: 2.714285714
A7: Low | B7: =[4]!AUDCAD -> 1.02852 | C7: =[4]!AUDJPY -> 91.443 | D7: =[4]!AUDNZD -> 1.25887 | E7: =[4]!AUDUSD -> 1.03936 | F7: =[4]!CADCHF -> 0.93526 | G7: =[4]!CADJPY -> 88.578 | H7: =[4]!CHFJPY -> 94.345 | I7: =[4]!EURAUD -> 1.24523 | J7: =[4]!EURCAD -> 1.28453 | K7: =[4]!EURCHF -> 1.20813 | L7: =[4]!EURGBP -> 0.80961 | M7: =[4]!EURJPY -> 114.094 | N7: =[4]!GBPCAD -> 1.57991 | O7: =[4]!GBPAUD -> 1.53231 | P7: =[4]!GBPNZD -> 1.92997 | Q7: =[4]!GBPCHF -> 1.48365 | R7: =[4]!GBPJPY -> 140.514 | S7: =[4]!GBPUSD -> 1.60081 | T7: =[4]!NZDJPY -> 72.131 | U7: =[4]!NZDUSD -> 0.82125 | V7: =[4]!USDCAD -> 0.98472 | W7: =[4]!USDCHF -> 0.92303 | X7: =[4]!USDJPY -> 87.551 | Y7: =[4]!AUDCHF -> 0.96594 | Z7: =[4]!EURUSD -> 1.29963 | AA7: =[4]!EURNZD -> 1.57008 | AB7: =[4]!NZDCAD -> 0.8123 | AC7: =[4]!NZDCHF -> 0.76311 | AE7: 10 | AF7: 2 | AH7: CADCHF | AI7: 3.857142857 | AJ7: 7.142857143
AE8: 25 | AF8: 3 | AH8: CADJPY | AI8: 3.857142857 | AJ8: 2
A9: PIP Range | B9: =($B4:$AC4-$B7:$AC7)*100000 -> 685 | C9: =($B4:$AC4-$B7:$AC7)*1000 -> 1025 | D9: =($B4:$AC4-$B7:$AC7)*100000 -> 915 | E9: 928 | F9: 593 | G9: =($B4:$AC4-$B7:$AC7)*1000 -> 1051 | H9: =($B4:$AC4-$B7:$AC7)*1000 -> 1151 | I9: =($B4:$AC4-$B7:$AC7)*100000 -> 629 | J9: 707 | K9: 121 | L9: 465 | M9: =($B4:$AC4-$B7:$AC7)*1000 -> 1304 | N9: 1144 | O9: 899 | P9: 2386 | Q9: 901 | R9: =($B4:$AC4-$B7:$AC7)*1000 -> 1291 | S9: 796 | T9: =($B4:$AC4-$B7:$AC7)*1000 -> 1241 | U9: 1100 | V9: 751 | W9: 720 | X9: =($B4:$AC4-$B7:$AC7)*1000 -> 849 | Y9: 493 | Z9: 923 | AA9: 1398 | AB9: 937 | AC9: =($B4:$AC4-$B7:$AC7)*100000 -> 591 | AE9: 40 | AF9: 4 | AH9: CHFJPY | AI9: 7.142857143 | AJ9: 2
A10: Bid Ratio | B10: =($B6:$AC6-$B7:$AC7)/$B22:$AC22*100000 -> 0.457417722 | C10: =($B6:$AC6-$B7:$AC7)/$B22:$AC22*1000 -> 0.8571180932 | D10: =($B6:$AC6-$B7:$AC7)/$B22:$AC22*100000 -> 0.03960796534 | E10: 0.7255386036 | F10: 0.04846213588 | G10: =($B6:$AC6-$B7:$AC7)/$B22:$AC22*1000 -> 0.6727069606 | H10: =($B6:$AC6-$B7:$AC7)/$B22:$AC22*1000 -> 0.8035276983 | I10: 0.1314697263 | J10: 0.6605175245 | K10: 0.01320152487 | L10: 0.3008469757 | M10: =($B6:$AC6-$B7:$AC7)/$B22:$AC22*1000 -> 1.390634602 | N10: 0.7797932615 | O10: 0.02055191634 | P10: 0.06106181973 | Q10: 0.1943183635 | R10: =($B6:$AC6-$B7:$AC7)/$B22:$AC22*1000 -> 1.729242669 | S10: 0.6418291937 | T10: =($B6:$AC6-$B7:$AC7)/$B22:$AC22*1000 -> 0.8586429675 | U10: 0.7052264291 | V10: 0.1584341865 | W10: 0.1003385739 | X10: =($B6:$AC6-$B7:$AC7)/$B22:$AC22*1000 -> 0.474427384 | Y10: 0.2460235043 | Z10: 0.7638136511 | AA10: 0.03952452073 | AB10: 0.601368892 | AC10: 0.4540140441 | AE10: 50 | AF10: 5 | AH10: EURAUD | AI10: 4 | AJ10: 5.142857143
AE11: 60 | AF11: 6 | AH11: EURCAD | AI11: 4 | AJ11: 3.857142857
A12: Relative | B12: =LEFT(B3,3) -> AUD | C12: =LEFT(C3,3) -> AUD | D12: AUD | E12: AUD | F12: =LEFT(F3,3) -> CAD | G12: CAD | H12: CHF | I12: EUR | J12: EUR | K12: EUR | L12: EUR | M12: EUR | N12: GBP | O12: GBP | P12: GBP | Q12: GBP | R12: GBP | S12: GBP | T12: NZD | U12: NZD | V12: USD | W12: USD | X12: USD | Y12: =LEFT(Y3,3) -> AUD | Z12: =LEFT(Z3,3) -> EUR | AA12: =LEFT(AA3,3) -> EUR | AB12: =LEFT(AB3,3) -> NZD | AC12: =LEFT(AC3,3) -> NZD | AE12: 75 | AF12: 7 | AH12: EURCHF | AI12: 4 | AJ12: 7.142857143
A13: Strength | B13: =LOOKUP(100*B10,$AE5:$AE14,$AF5:$AF14) -> 4 | C13: =LOOKUP(100*C10,$AE5:$AE14,$AF5:$AF14) -> 7 | D13: 1 | E13: 6 | F13: =LOOKUP(100*F10,$AE5:$AE14,$AF5:$AF14) -> 1 | G13: 6 | H13: 7 | I13: 2 | J13: 6 | K13: 0 | L13: 3 | M13: 9 | N13: 7 | O13: 0 | P13: 1 | Q13: 2 | R13: 9 | S13: 6 | T13: 7 | U13: 6 | V13: 2 | W13: 2 | X13: 4 | Y13: =LOOKUP(100*Y10,$AE5:$AE14,$AF5:$AF14) -> 2 | Z13: =LOOKUP(100*Z10,$AE5:$AE14,$AF5:$AF14) -> 7 | AA13: =LOOKUP(100*AA10,$AE5:$AE14,$AF5:$AF14) -> 1 | AB13: =LOOKUP(100*AB10,$AE5:$AE14,$AF5:$AF14) -> 6 | AC13: =LOOKUP(100*AC10,$AE5:$AE14,$AF5:$AF14) -> 4 | AE13: 90 | AF13: 8 | AH13: EURGBP | AI13: 4 | AJ13: 4.428571429
B14: =RIGHT(B3,3) -> CAD | C14: =RIGHT(C3,3) -> JPY | D14: NZD | E14: USD | F14: =RIGHT(F3,3) -> CHF | G14: JPY | H14: JPY | I14: AUD | J14: CAD | K14: CHF | L14: GBP | M14: JPY | N14: CAD | O14: AUD | P14: NZD | Q14: CHF | R14: JPY | S14: USD | T14: JPY | U14: USD | V14: CAD | W14: CHF | X14: JPY | Y14: =RIGHT(Y3,3) -> CHF | Z14: =RIGHT(Z3,3) -> USD | AA14: =RIGHT(AA3,3) -> NZD | AB14: =RIGHT(AB3,3) -> CAD | AC14: =RIGHT(AC3,3) -> CHF | AE14: 97 | AF14: 9 | AH14: EURJPY | AI14: 4 | AJ14: 2
B15: =9-B13 -> 5 | C15: =9-C13 -> 2 | D15: 8 | E15: 3 | F15: =9-F13 -> 8 | G15: 3 | H15: 2 | I15: 7 | J15: 3 | K15: 9 | L15: 6 | M15: 0 | N15: 2 | O15: 9 | P15: 8 | Q15: 7 | R15: 0 | S15: 3 | T15: 2 | U15: 3 | V15: 7 | W15: 7 | X15: 5 | Y15: =9-Y13 -> 7 | Z15: =9-Z13 -> 2 | AA15: =9-AA13 -> 8 | AB15: =9-AB13 -> 3 | AC15: =9-AC13 -> 5 | AH15: GBPCAD | AI15: 4.428571429 | AJ15: 3.857142857
AH16: GBPAUD | AI16: 4.428571429 | AJ16: 5.142857143
A17: Total Strength | C17: USD | D17: EUR | E17: GBP | F17: CHF | G17: NZD | H17: AUD | I17: JPY | J17: CAD | L17: Strong | AH17: GBPCAD | AI17: 4.428571429 | AJ17: 3.857142857
C18: =(V13+W13+X13+E15+S15+U15+Z15)/C19 -> 2.714285714 | D18: =(I13+J13+K13+L13+M13+Z13+AA13)/D19 -> 4 | E18: =(N13+O13+P13+Q13+R13+S13+L15)/E19 -> 4.428571429 | F18: =(F15+H13+K15+Q15+W15+Y15+AC15)/F19 -> 7.142857143 | G18: =(T13+U13+D15+P15+AA15+AB13+AC13)/G19 -> 6.714285714 | H18: =(B13+C13+D13+E13+I15+O15+Y13)/H19 -> 5.142857143 | I18: =(C15+G15+H15+M15+R15+T15+X15)/I19 -> 2 | J18: =(F13+G13+B15+J15+N15+V15+AB15)/J19 -> 3.857142857 | L18: Rising | AH18: GBPCHF | AI18: 4.428571429 | AJ18: 7.142857143
B19: # of evaluation points | C19: =COUNTIF($B$12:$AC$15,"=USD") -> 7 | D19: =COUNTIF($B$12:$AC$15,"=EUR") -> 7 | E19: =COUNTIF($B$12:$AC$15,"=GBP") -> 7 | F19: =COUNTIF($B$12:$AC$15,"=CHF") -> 7 | G19: =COUNTIF($B$12:$AC$15,"=NZD") -> 7 | H19: =COUNTIF($B$12:$AC$15,"=AUD") -> 7 | I19: =COUNTIF($B$12:$AC$15,"=JPY") -> 7 | J19: =COUNTIF($B$12:$AC$15,"=CAD") -> 7 | L19: Neutral | AH19: GBPJPY | AI19: 4.428571429 | AJ19: 2
L20: Weak | Z20: eurusd | AH20: GBPUSD | AI20: 4.428571429 | AJ20: 2.714285714
B21: =B9*C41*F41 -> 65449.01 | C21: =C9*C46*F46 -> 121048.4 | D21: =D9*C52*F52 -> 77398.02 | E21: =E9*C42*F42 -> 99760 | F21: =F9*C39*F39 -> 75737.96 | G21: =G9*C40*F40 -> 131494.814 | H21: =H9*C35*F35 -> 122001.396 | I21: =I9*C43*F43 -> 86805.774 | J21: =J9*C37*F37 -> 98541.66 | K21: =K9*C31*F31 -> 16488.549 | L21: =L9*C30*F30 -> 50081.43 | M21: =M9*C32*F32 -> 211903.912 | N21: =N9*C38*F38 -> 167423.256 | O21: =O9*C44*F44 -> 60225.808 | P21: =P9*C49*F49 -> 451163.968 | Q21: =Q9*C33*F33 -> 160641.993 | R21: =R9*C34*F34 -> 250250.022 | S21: =S9*C27*F27 -> 108733.6 | T21: =T9*C51*F51 -> 114873.165 | U21: =U9*C48*F48 -> 92840 | V21: =V9*C36*F36 -> 55826.336 | W21: =(W9*C28*F28) -> 75198.24 | X21: =(X9*C29*F29) -> 84135.051 | Y21: =(Y9*C45*F45) -> 63930.761 | Z21: =(Z9*C26*F26) -> 123866.6 | AA21: =(AA9*C47*F47) -> 220783.344 | AB21: =(AB9*C53*F53) -> 79495.08 | AC21: =(AC9*C50*F50) -> 59777.286 | AH21: NZDJPY | AI21: 6.714285714 | AJ21: 2
B22: =(Z21/$B21:$AC21)*$B9:$AC9 -> 1296.408013 | C22: =(Z21/$B21:$AC21)*$B9:$AC9 -> 1048.863636 | D22: =(Z21/$B21:$AC21)*$B9:$AC9 -> 1464.351918 | E22: =(Z21/$B21:$AC21)*$B9:$AC9 -> 1152.247442 | F22: =(Z21/$B21:$AC21)*$B9:$AC9 -> 969.8293141 | G22: =(Z21/$B21:$AC21)*$B9:$AC9 -> 990.0298927 | H22: =(Z21/$B21:$AC21)*$B9:$AC9 -> 1168.596928 | I22: =(Z21/$B21:$AC21)*$B9:$AC9 -> 897.5450343 | J22: =(Z21/$B21:$AC21)*$B9:$AC9 -> 888.6970871 | K22: =(Z21/$B21:$AC21)*$B9:$AC9 -> 908.9859029 | L22: =(Z21/$B21:$AC21)*$B9:$AC9 -> 1150.086349 | M22: =(Z21/$B21:$AC21)*$B9:$AC9 -> 762.2419278 | N22: =(Z21/$B21:$AC21)*$B9:$AC9 -> 846.3781782 | O22: =(Z21/$B21:$AC21)*$B9:$AC9 -> 1848.975997 | P22: =(Z21/$B21:$AC21)*$B9:$AC9 -> 655.0738281 | Q22: =(Z21/$B21:$AC21)*$B9:$AC9 -> 694.7361927 | R22: =(Z21/$B21:$AC21)*$B9:$AC9 -> 639.0080581 | S22: =(Z21/$B21:$AC21)*$B9:$AC9 -> 906.7833089 | T22: =(Z21/$B21:$AC21)*$B9:$AC9 -> 1338.158051 | U22: =(Z21/$B21:$AC21)*$B9:$AC9 -> 1467.613744 | V22: =(Z21/$B21:$AC21)*$B9:$AC9 -> 1666.307038 | W22: =(Z21/$B21:$AC21)*$B9:$AC9 -> 1185.984566 | X22: =(Z21/$B21:$AC21)*$B9:$AC9 -> 1249.92785 | Y22: =(Z21/$B21:$AC21)*$B9:$AC9 -> 955.1932879 | Z22: =(Z21/$B21:$AC21)*$B9:$AC9 -> 923 | AA22: =(Z21/$B21:$AC21)*$B9:$AC9 -> 784.3232359 | AB22: =(Z21/$B21:$AC21)*$B9:$AC9 -> 1460.002357 | AC22: =(Z21/$B21:$AC21)*$B9:$AC9 -> 1224.63172
AH24: NZDUSD | AI24: 6.714285714 | AJ24: 2.714285714
C25: pips | D25: $ | E25: % | F25: pip value | AH25: USDCAD | AI25: 2.714285714 | AJ25: 3.857142857
B26: EURUSD | C26: 134.2 | D26: 1,342.0 | E26: 0.95 | F26: 1 | AH26: USDCHF | AI26: 2.714285714 | AJ26: 7.142857143
B27: GBPUSD | C27: 136.6 | D27: 1,366.2 | E27: 0.84 | F27: 1 | AH27: USDJPY | AI27: 2.714285714 | AJ27: 2
B28: USDCHF | C28: 101.4 | D28: 1,125.8 | E28: 1.12 | F28: 1.03
B29: USDJPY | C29: 81.9 | D29: 1,016.3 | E29: 1.01 | F29: 1.21
B30: EURGBP | C30: 68.6 | D30: 1,113.5 | E30: 0.79 | F30: 1.57
B31: EURCHF | C31: 132.3 | D31: 1,469.1 | E31: 1.03 | F31: 1.03
B32: EURJPY | C32: 134.3 | D32: 1,666.7 | E32: 1.17 | F32: 1.21
B33: GBPCHF | C33: 173.1 | D33: 1,921.8 | E33: 1.18 | F33: 1.03
B34: GBPJPY | C34: 160.2 | D34: 1,987.3 | E34: 1.21 | F34: 1.21
B35: CHFJPY | C35: 87.6 | D35: 1,087.0 | E35: 0.98 | F35: 1.21
B36: USDCAD | C36: 73.6 | D36: 748 | E36: 0.75 | F36: 1.01
B37: EURCAD | C37: 138 | D37: 1,402.6 | E37: 1 | F37: 1.01
B38: GBPCAD | C38: 144.9 | D38: 1,472.3 | E38: 0.91 | F38: 1.01
B39: CADCHF | C39: 124 | D39: 1,376.3 | E39: 1.34 | F39: 1.03
B40: CADJPY | C40: 103.4 | D40: 1,282.5 | E40: 1.25 | F40: 1.21
B41: AUDCAD | C41: 94.6 | D41: 961.9 | E41: 0.96 | F41: 1.01
B42: AUDUSD | C42: 107.5 | D42: 1,074.8 | E42: 1.07 | F42: 1
B43: EURAUD | C43: 139.4 | D43: 1,388.0 | E43: 0.99 | F43: 0.99
B44: AUDGBP | C44: 63.2 | D44: 1,025.9 | E44: 1.02 | F44: 1.06
B45: AUDCHF | C45: 125.9 | D45: 1,398.0 | E45: 1.38 | F45: 1.03
B46: AUDJPY | C46: 97.6 | D46: 1,211.3 | E46: 1.2 | F46: 1.21
B47: EURNZD | C47: 207.8 | D47: 1,517.4 | E47: 1.08 | F47: 0.76
B48: NZDUSD | C48: 84.4 | D48: 844.2 | E48: 1.15 | F48: 1
B49: GBPNZD | C49: 248.8 | D49: 1,816.6 | E49: 1.13 | F49: 0.76
B50: NZDCHF | C50: 98.2 | D50: 1,090.5 | E50: 1.48 | F50: 1.03
B51: NZDJPY | C51: 76.5 | D51: 949.2 | E51: 1.28 | F51: 1.21
B52: AUDNZD | C52: 111.3 | D52: 812.5 | E52: 0.81 | F52: 0.76
B53: NZDCAD | C53: 84 | D53: 853.5 | E53: 1.17 | F53: 1.01

Sheet List1 (hidden)

Sheet 28 párový prehľad
C4: AUDCAD | D4: AUDJPY | E4: AUDNZD | F4: AUDUSD | G4: CADCHF | H4: CADJPY | I4: CHFJPY | J4: EURAUD | K4: EURCAD | L4: EURCHF | M4: EURGBP | N4: EURJPY | O4: GBPCAD | P4: GBPAUD | Q4: GBPNZD | R4: GBPCHF | S4: GBPJPY | T4: GBPUSD | U4: NZDJPY | V4: NZDUSD | W4: USDCAD | X4: USDCHF | Y4: USDJPY | Z4: AUDCHF | AA4: EURUSD | AB4: EURNZD | AC4: NZDCAD | AD4: NZDCHF
B5: High | C5: =[1]!AUDCAD -> 1.03537 | D5: =[1]!AUDJPY -> 92.468 | E5: =[1]!AUDNZD -> 1.26802 | F5: =[1]!AUDUSD -> 1.04864 | G5: =[1]!CADCHF -> 0.94119 | H5: =[1]!CADJPY -> 89.629 | I5: =[1]!CHFJPY -> 95.496 | J5: =[1]!EURAUD -> 1.25152 | K5: =[1]!EURCAD -> 1.2916 | L5: =[1]!EURCHF -> 1.20934 | M5: =[1]!EURGBP -> 0.81426 | N5: =[1]!EURJPY -> 115.398 | O5: =[1]!GBPCAD -> 1.59135 | P5: =[1]!GBPAUD -> 1.5413 | Q5: =[1]!GBPNZD -> 1.95383 | R5: =[1]!GBPCHF -> 1.49266 | S5: =[1]!GBPJPY -> 141.805 | T5: =[1]!GBPUSD -> 1.60877 | U5: =[1]!NZDJPY -> 73.372 | V5: =[1]!NZDUSD -> 0.83225 | W5: =[1]!USDCAD -> 0.99223 | X5: =[1]!USDCHF -> 0.93023 | Y5: =[1]!USDJPY -> 88.4 | Z5: =[1]!AUDCHF -> 0.97087 | AA5: =[1]!EURUSD -> 1.30886 | AB5: =[1]!EURNZD -> 1.58406 | AC5: =[1]!NZDCAD -> 0.82167 | AD5: =[1]!NZDCHF -> 0.76902
B6: Ask | C6: =[2]!AUDCAD -> 1.03508 | D6: =[2]!AUDJPY -> 92.444 | E6: =[2]!AUDNZD -> 1.26004 | F6: =[2]!AUDUSD -> 1.04811 | G6: =[2]!CADCHF -> 0.93668 | H6: =[2]!CADJPY -> 89.291 | I6: =[2]!CHFJPY -> 95.405 | J6: =[2]!EURAUD -> 1.2477 | K6: =[2]!EURCAD -> 1.29099 | L6: =[2]!EURCHF -> 1.20866 | M6: =[2]!EURGBP -> 0.81344 | N6: =[2]!EURJPY -> 115.271 | O6: =[2]!GBPCAD -> 1.58724 | P6: =[2]!GBPAUD -> 1.53405 | Q6: =[2]!GBPNZD -> 1.93255 | R6: =[2]!GBPCHF -> 1.48647 | S6: =[2]!GBPJPY -> 141.764 | T6: =[2]!GBPUSD -> 1.60704 | U6: =[2]!NZDJPY -> 73.392 | V6: =[2]!NZDUSD -> 0.83211 | W6: =[2]!USDCAD -> 0.98779 | X6: =[2]!USDCHF -> 0.92532 | Y6: =[2]!USDJPY -> 88.179 | Z6: =[2]!AUDCHF -> 0.9699 | AA6: =[2]!EURUSD -> 1.30709 | AB6: =[2]!EURNZD -> 1.57194 | AC6: =[2]!NZDCAD -> 0.82186 | AD6: =[2]!NZDCHF -> 0.76951
B7: Bid | C7: =[3]!AUDCAD -> 1.03445 | D7: =[3]!AUDJPY -> 92.342 | E7: =[3]!AUDNZD -> 1.25945 | F7: =[3]!AUDUSD -> 1.04772 | G7: =[3]!CADCHF -> 0.93573 | H7: =[3]!CADJPY -> 89.244 | I7: =[3]!CHFJPY -> 95.284 | J7: =[3]!EURAUD -> 1.24641 | K7: =[3]!EURCAD -> 1.2904 | L7: =[3]!EURCHF -> 1.20825 | M7: =[3]!EURGBP -> 0.81307 | N7: =[3]!EURJPY -> 115.154 | O7: =[3]!GBPCAD -> 1.58651 | P7: =[3]!GBPAUD -> 1.53269 | Q7: =[3]!GBPNZD -> 1.93037 | R7: =[3]!GBPCHF -> 1.485 | S7: =[3]!GBPJPY -> 141.619 | T7: =[3]!GBPUSD -> 1.60663 | U7: =[3]!NZDJPY -> 73.28 | V7: =[3]!NZDUSD -> 0.8316 | W7: =[3]!USDCAD -> 0.98736 | X7: =[3]!USDCHF -> 0.92422 | Y7: =[3]!USDJPY -> 88.144 | Z7: =[3]!AUDCHF -> 0.96829 | AA7: =[3]!EURUSD -> 1.30668 | AB7: =[3]!EURNZD -> 1.57039 | AC7: =[3]!NZDCAD -> 0.82108 | AD7: =[3]!NZDCHF -> 0.76867
B8: Low | C8: =[4]!AUDCAD -> 1.02852 | D8: =[4]!AUDJPY -> 91.443 | E8: =[4]!AUDNZD -> 1.25887 | F8: =[4]!AUDUSD -> 1.03936 | G8: =[4]!CADCHF -> 0.93526 | H8: =[4]!CADJPY -> 88.578 | I8: =[4]!CHFJPY -> 94.345 | J8: =[4]!EURAUD -> 1.24523 | K8: =[4]!EURCAD -> 1.28453 | L8: =[4]!EURCHF -> 1.20813 | M8: =[4]!EURGBP -> 0.80961 | N8: =[4]!EURJPY -> 114.094 | O8: =[4]!GBPCAD -> 1.57991 | P8: =[4]!GBPAUD -> 1.53231 | Q8: =[4]!GBPNZD -> 1.92997 | R8: =[4]!GBPCHF -> 1.48365 | S8: =[4]!GBPJPY -> 140.514 | T8: =[4]!GBPUSD -> 1.60081 | U8: =[4]!NZDJPY -> 72.131 | V8: =[4]!NZDUSD -> 0.82125 | W8: =[4]!USDCAD -> 0.98472 | X8: =[4]!USDCHF -> 0.92303 | Y8: =[4]!USDJPY -> 87.551 | Z8: =[4]!AUDCHF -> 0.96594 | AA8: =[4]!EURUSD -> 1.29963 | AB8: =[4]!EURNZD -> 1.57008 | AC8: =[4]!NZDCAD -> 0.8123 | AD8: =[4]!NZDCHF -> 0.76311
A10: 12w | B10: Volatilita | C10: 69.7 | D10: 85.5 | E10: 71.5 | F10: 108.8 | G10: 76.8 | H10: 69 | I10: 88 | J10: 104.8 | K10: 98.7 | L10: 40.7 | M10: 58.7 | N10: 105.5 | O10: 114 | P10: 132.8 | Q10: 181.3 | R10: 111.9 | S10: 104.3 | T10: 116.4 | U10: 68 | V10: 86.1 | W10: 76.6 | X10: 93.3 | Y10: 45.9 | Z10: 85.7 | AA10: 127 | AB10: 152.2 | AC10: 61.5 | AD10: 71.4
B11: Dnes | C11: =(C5-C8)*10000 -> 68.5 | D11: =(D5-D8)*100 -> 102.5 | E11: =(E5-E8)*10000 -> 91.5 | F11: 92.8 | G11: 59.3 | H11: =(H5-H8)*100 -> 105.1 | I11: =(I5-I8)*100 -> 115.1 | J11: 62.9 | K11: 70.7 | L11: 12.1 | M11: 46.5 | N11: =(N5-N8)*100 -> 130.4 | O11: 114.4 | P11: 89.9 | Q11: 238.6 | R11: 90.1 | S11: =(S5-S8)*100 -> 129.1 | T11: 79.6 | U11: =(U5-U8)*100 -> 124.1 | V11: 110 | W11: 75.1 | X11: 72 | Y11: =(Y5-Y8)*100 -> 84.9 | Z11: 49.3 | AA11: 92.3 | AB11: 139.8 | AC11: 93.7 | AD11: 59.1
C12: =1/(C10/C11) -> 0.9827833572 | D12: =1/(D10/D11) -> 1.198830409 | E12: 1.27972028 | F12: 0.8529411765 | G12: 0.7721354167 | H12: 1.523188406 | I12: 1.307954545 | J12: 0.6001908397 | K12: 0.7163120567 | L12: 0.2972972973 | M12: 0.7921635434 | N12: 1.236018957 | O12: 1.003508772 | P12: 0.6769578313 | Q12: 1.316050745 | R12: 0.8051831993 | S12: 1.237775647 | T12: 0.6838487973 | U12: 1.825 | V12: 1.277584204 | W12: 0.9804177546 | X12: 0.7717041801 | Y12: 1.849673203 | Z12: 0.5752625438 | AA12: 0.7267716535 | AB12: 0.9185282523 | AC12: 1.523577236 | AD12: 0.8277310924
C16: Priemer: | D16: =SUM(C12:AD12)/28 -> 1.019968264 | F16: MIN: | G16: =MIN(C12:AD12) -> 0.2972972973 | I16: MAX: | J16: =MAX(C12:AD12) -> 1.849673203
B22: AUD | D22: AUDCAD | E22: AUDJPY | F22: AUDNZD | G22: AUDUSD | H22: EURAUD | I22: GBPAUD | J22: AUDCHF | M22: CAD | O22: AUDCAD | P22: CADCHF | Q22: CADJPY | R22: EURCAD | S22: GBPCAD | T22: USDCAD | U22: NZDCAD
C23: High | D23: =[1]!AUDCAD -> 1.03537 | E23: =[1]!AUDJPY -> 92.468 | F23: =[1]!AUDNZD -> 1.26802 | G23: =[1]!AUDUSD -> 1.04864 | H23: =[1]!EURAUD -> 1.25152 | I23: =[1]!GBPAUD -> 1.5413 | J23: =[1]!AUDCHF -> 0.97087 | N23: High | O23: =[1]!AUDCAD -> 1.03537 | P23: =[1]!CADCHF -> 0.94119 | Q23: =[1]!CADJPY -> 89.629 | R23: =[1]!EURCAD -> 1.2916 | S23: =[1]!GBPCAD -> 1.59135 | T23: =[1]!USDCAD -> 0.99223 | U23: =[1]!NZDCAD -> 0.82167
A24: Priemer | B24: =SUM(D30:J30)/7 -> 0.8809552054 | C24: Ask | D24: =[2]!AUDCAD -> 1.03508 | E24: =[2]!AUDJPY -> 92.444 | F24: =[2]!AUDNZD -> 1.26004 | G24: =[2]!AUDUSD -> 1.04811 | H24: =[2]!EURAUD -> 1.2477 | I24: =[2]!GBPAUD -> 1.53405 | J24: =[2]!AUDCHF -> 0.9699 | L24: Priemer | M24: =SUM(O30:U30)/7 -> 1.071703286 | N24: Ask | O24: =[2]!AUDCAD -> 1.03508 | P24: =[2]!CADCHF -> 0.93668 | Q24: =[2]!CADJPY -> 89.291 | R24: =[2]!EURCAD -> 1.29099 | S24: =[2]!GBPCAD -> 1.58724 | T24: =[2]!USDCAD -> 0.98779 | U24: =[2]!NZDCAD -> 0.82186
C25: Bid | D25: =[3]!AUDCAD -> 1.03445 | E25: =[3]!AUDJPY -> 92.342 | F25: =[3]!AUDNZD -> 1.25945 | G25: =[3]!AUDUSD -> 1.04772 | H25: =[3]!EURAUD -> 1.24641 | I25: =[3]!GBPAUD -> 1.53269 | J25: =[3]!AUDCHF -> 0.96829 | N25: Bid | O25: =[3]!AUDCAD -> 1.03445 | P25: =[3]!CADCHF -> 0.93573 | Q25: =[3]!CADJPY -> 89.244 | R25: =[3]!EURCAD -> 1.2904 | S25: =[3]!GBPCAD -> 1.58651 | T25: =[3]!USDCAD -> 0.98736 | U25: =[3]!NZDCAD -> 0.82108
A26: Min | B26: =MIN(D30:J30) -> 0.5752625438 | C26: Low | D26: =[4]!AUDCAD -> 1.02852 | E26: =[4]!AUDJPY -> 91.443 | F26: =[4]!AUDNZD -> 1.25887 | G26: =[4]!AUDUSD -> 1.03936 | H26: =[4]!EURAUD -> 1.24523 | I26: =[4]!GBPAUD -> 1.53231 | J26: =[4]!AUDCHF -> 0.96594 | L26: Min | M26: =MIN(O30:U30) -> 0.7163120567 | N26: Low | O26: =[4]!AUDCAD -> 1.02852 | P26: =[4]!CADCHF -> 0.93526 | Q26: =[4]!CADJPY -> 88.578 | R26: =[4]!EURCAD -> 1.28453 | S26: =[4]!GBPCAD -> 1.57991 | T26: =[4]!USDCAD -> 0.98472 | U26: =[4]!NZDCAD -> 0.8123
A28: Max | B28: =MAX(D30:J30) -> 1.27972028 | C28: Volatilita | D28: 69.7 | E28: 85.5 | F28: 71.5 | G28: 108.8 | H28: 104.8 | I28: 132.8 | J28: 85.7 | L28: Max | M28: =MAX(O30:U30) -> 1.523577236 | N28: Volatilita | O28: 69.7 | P28: 76.8 | Q28: 69 | R28: 98.7 | S28: 114 | T28: 76.6 | U28: 61.5
C29: Dnes | D29: =(D23-D26)*10000 -> 68.5 | E29: =(E23-E26)*100 -> 102.5 | F29: =(F23-F26)*10000 -> 91.5 | G29: =(G23-G26)*10000 -> 92.8 | H29: =(H23-H26)*10000 -> 62.9 | I29: =(I23-I26)*10000 -> 89.9 | J29: =(J23-J26)*10000 -> 49.3 | N29: Dnes | O29: =(O23-O26)*10000 -> 68.5 | P29: =(P23-P26)*10000 -> 59.3 | Q29: =(Q23-Q26)*100 -> 105.1 | R29: =(R23-R26)*10000 -> 70.7 | S29: =(S23-S26)*10000 -> 114.4 | T29: =(T23-T26)*10000 -> 75.1 | U29: =(U23-U26)*10000 -> 93.7
D30: =1/(D28/D29) -> 0.9827833572 | E30: =1/(E28/E29) -> 1.198830409 | F30: 1.27972028 | G30: 0.8529411765 | H30: 0.6001908397 | I30: 0.6769578313 | J30: 0.5752625438 | O30: =1/(O28/O29) -> 0.9827833572 | P30: =1/(P28/P29) -> 0.7721354167 | Q30: 1.523188406 | R30: 0.7163120567 | S30: 1.003508772 | T30: 0.9804177546 | U30: 1.523577236
B34: EUR | D34: EURAUD | E34: EURCAD | F34: EURCHF | G34: EURGBP | H34: EURJPY | I34: EURUSD | J34: EURNZD | M34: GBP | O34: EURGBP | P34: GBPCAD | Q34: GBPAUD | R34: GBPNZD | S34: GBPCHF | T34: GBPJPY | U34: GBPUSD
C35: High | D35: =[1]!EURAUD -> 1.25152 | E35: =[1]!EURCAD -> 1.2916 | F35: =[1]!EURCHF -> 1.20934 | G35: =[1]!EURGBP -> 0.81426 | H35: =[1]!EURJPY -> 115.398 | I35: =[1]!EURUSD -> 1.30886 | J35: =[1]!EURNZD -> 1.58406 | N35: High | O35: =[1]!EURGBP -> 0.81426 | P35: =[1]!GBPCAD -> 1.59135 | Q35: =[1]!GBPAUD -> 1.5413 | R35: =[1]!GBPNZD -> 1.95383 | S35: =[1]!GBPCHF -> 1.49266 | T35: =[1]!GBPJPY -> 141.805 | U35: =[1]!GBPUSD -> 1.60877
A36: Priemer | B36: =SUM(D42:J42)/7 -> 0.7553260858 | C36: Ask | D36: =[2]!EURAUD -> 1.2477 | E36: =[2]!EURCAD -> 1.29099 | F36: =[2]!EURCHF -> 1.20866 | G36: =[2]!EURGBP -> 0.81344 | H36: =[2]!EURJPY -> 115.271 | I36: =[2]!EURUSD -> 1.30709 | J36: =[2]!EURNZD -> 1.57194 | L36: Priemer | M36: =SUM(O42:U42)/7 -> 0.9307840764 | N36: Ask | O36: =[2]!EURGBP -> 0.81344 | P36: =[2]!GBPCAD -> 1.58724 | Q36: =[2]!GBPAUD -> 1.53405 | R36: =[2]!GBPNZD -> 1.93255 | S36: =[2]!GBPCHF -> 1.48647 | T36: =[2]!GBPJPY -> 141.764 | U36: =[2]!GBPUSD -> 1.60704
C37: Bid | D37: =[3]!EURAUD -> 1.24641 | E37: =[3]!EURCAD -> 1.2904 | F37: =[3]!EURCHF -> 1.20825 | G37: =[3]!EURGBP -> 0.81307 | H37: =[3]!EURJPY -> 115.154 | I37: =[3]!EURUSD -> 1.30668 | J37: =[3]!EURNZD -> 1.57039 | N37: Bid | O37: =[3]!EURGBP -> 0.81307 | P37: =[3]!GBPCAD -> 1.58651 | Q37: =[3]!GBPAUD -> 1.53269 | R37: =[3]!GBPNZD -> 1.93037 | S37: =[3]!GBPCHF -> 1.485 | T37: =[3]!GBPJPY -> 141.619 | U37: =[3]!GBPUSD -> 1.60663
A38: Min | B38: =MIN(D42:J42) -> 0.2972972973 | C38: Low | D38: =[4]!EURAUD -> 1.24523 | E38: =[4]!EURCAD -> 1.28453 | F38: =[4]!EURCHF -> 1.20813 | G38: =[4]!EURGBP -> 0.80961 | H38: =[4]!EURJPY -> 114.094 | I38: =[4]!EURUSD -> 1.29963 | J38: =[4]!EURNZD -> 1.57008 | L38: Min | M38: =MIN(O42:U42) -> 0.6769578313 | N38: Low | O38: =[4]!EURGBP -> 0.80961 | P38: =[4]!GBPCAD -> 1.57991 | Q38: =[4]!GBPAUD -> 1.53231 | R38: =[4]!GBPNZD -> 1.92997 | S38: =[4]!GBPCHF -> 1.48365 | T38: =[4]!GBPJPY -> 140.514 | U38: =[4]!GBPUSD -> 1.60081
A40: Max | B40: =MAX(D42:J42) -> 1.236018957 | C40: Volatilita | D40: 104.8 | E40: 98.7 | F40: 40.7 | G40: 58.7 | H40: 105.5 | I40: 127 | J40: 152.2 | L40: Max | M40: =MAX(O42:U42) -> 1.316050745 | N40: Volatilita | O40: 58.7 | P40: 114 | Q40: 132.8 | R40: 181.3 | S40: 111.9 | T40: 104.3 | U40: 116.4
C41: Dnes | D41: =(D35-D38)*10000 -> 62.9 | E41: =(E35-E38)*10000 -> 70.7 | F41: =(F35-F38)*10000 -> 12.1 | G41: =(G35-G38)*10000 -> 46.5 | H41: =(H35-H38)*100 -> 130.4 | I41: =(I35-I38)*10000 -> 92.3 | J41: =(J35-J38)*10000 -> 139.8 | N41: Dnes | O41: =(O35-O38)*10000 -> 46.5 | P41: =(P35-P38)*10000 -> 114.4 | Q41: =(Q35-Q38)*10000 -> 89.9 | R41: =(R35-R38)*10000 -> 238.6 | S41: =(S35-S38)*10000 -> 90.1 | T41: =(T35-T38)*100 -> 129.1 | U41: =(U35-U38)*10000 -> 79.6
D42: =1/(D40/D41) -> 0.6001908397 | E42: 0.7163120567 | F42: 0.2972972973 | G42: 0.7921635434 | H42: 1.236018957 | I42: 0.7267716535 | J42: 0.9185282523 | O42: =1/(O40/O41) -> 0.7921635434 | P42: 1.003508772 | Q42: 0.6769578313 | R42: 1.316050745 | S42: 0.8051831993 | T42: 1.237775647 | U42: 0.6838487973
B46: CHF | D46: CADCHF | E46: CHFJPY | F46: EURCHF | G46: GBPCHF | H46: USDCHF | I46: AUDCHF | J46: NZDCHF | M46: JPY | O46: AUDJPY | P46: CADJPY | Q46: CHFJPY | R46: EURJPY | S46: GBPJPY | T46: NZDJPY | U46: USDJPY
C47: High | D47: =[1]!CADCHF -> 0.94119 | E47: =[1]!CHFJPY -> 95.496 | F47: =[1]!EURCHF -> 1.20934 | G47: =[1]!GBPCHF -> 1.49266 | H47: =[1]!USDCHF -> 0.93023 | I47: =[1]!AUDCHF -> 0.97087 | J47: =[1]!NZDCHF -> 0.76902 | N47: High | O47: =[1]!AUDJPY -> 92.468 | P47: =[1]!CADJPY -> 89.629 | Q47: =[1]!CHFJPY -> 95.496 | R47: =[1]!EURJPY -> 115.398 | S47: =[1]!GBPJPY -> 141.805 | T47: =[1]!NZDJPY -> 73.372 | U47: =[1]!USDJPY -> 88.4
A48: Priemer | B48: =SUM(D54:J54)/7 -> 0.7653240393 | C48: Ask | D48: =[2]!CADCHF -> 0.93668 | E48: =[2]!CHFJPY -> 95.405 | F48: =[2]!EURCHF -> 1.20866 | G48: =[2]!GBPCHF -> 1.48647 | H48: =[2]!USDCHF -> 0.92532 | I48: =[2]!AUDCHF -> 0.9699 | J48: =[2]!NZDCHF -> 0.76951 | L48: Priemer | M48: =SUM(O54:U54)/7 -> 1.454063024 | N48: Ask | O48: =[2]!AUDJPY -> 92.444 | P48: =[2]!CADJPY -> 89.291 | Q48: =[2]!CHFJPY -> 95.405 | R48: =[2]!EURJPY -> 115.271 | S48: =[2]!GBPJPY -> 141.764 | T48: =[2]!NZDJPY -> 73.392 | U48: =[2]!USDJPY -> 88.179
C49: Bid | D49: =[3]!CADCHF -> 0.93573 | E49: =[3]!CHFJPY -> 95.284 | F49: =[3]!EURCHF -> 1.20825 | G49: =[3]!GBPCHF -> 1.485 | H49: =[3]!USDCHF -> 0.92422 | I49: =[3]!AUDCHF -> 0.96829 | J49: =[3]!NZDCHF -> 0.76867 | N49: Bid | O49: =[3]!AUDJPY -> 92.342 | P49: =[3]!CADJPY -> 89.244 | Q49: =[3]!CHFJPY -> 95.284 | R49: =[3]!EURJPY -> 115.154 | S49: =[3]!GBPJPY -> 141.619 | T49: =[3]!NZDJPY -> 73.28 | U49: =[3]!USDJPY -> 88.144
A50: Min | B50: =MIN(D54:J54) -> 0.2972972973 | C50: Low | D50: =[4]!CADCHF -> 0.93526 | E50: =[4]!CHFJPY -> 94.345 | F50: =[4]!EURCHF -> 1.20813 | G50: =[4]!GBPCHF -> 1.48365 | H50: =[4]!USDCHF -> 0.92303 | I50: =[4]!AUDCHF -> 0.96594 | J50: =[4]!NZDCHF -> 0.76311 | L50: Min | M50: =MIN(O54:U54) -> 1.198830409 | N50: Low | O50: =[4]!AUDJPY -> 91.443 | P50: =[4]!CADJPY -> 88.578 | Q50: =[4]!CHFJPY -> 94.345 | R50: =[4]!EURJPY -> 114.094 | S50: =[4]!GBPJPY -> 140.514 | T50: =[4]!NZDJPY -> 72.131 | U50: =[4]!USDJPY -> 87.551
A52: Max | B52: =MAX(D54:J54) -> 1.307954545 | C52: Volatilita | D52: 76.8 | E52: 88 | F52: 40.7 | G52: 111.9 | H52: 93.3 | I52: 85.7 | J52: 71.4 | L52: Max | M52: =MAX(O54:U54) -> 1.849673203 | N52: Volatilita | O52: 85.5 | P52: 69 | Q52: 88 | R52: 105.5 | S52: 104.3 | T52: 68 | U52: 45.9
C53: Dnes | D53: =(D47-D50)*10000 -> 59.3 | E53: =(E47-E50)*100 -> 115.1 | F53: =(F47-F50)*10000 -> 12.1 | G53: =(G47-G50)*10000 -> 90.1 | H53: =(H47-H50)*10000 -> 72 | I53: =(I47-I50)*10000 -> 49.3 | J53: =(J47-J50)*10000 -> 59.1 | N53: Dnes | O53: =(O47-O50)*100 -> 102.5 | P53: 105.1 | Q53: 115.1 | R53: 130.4 | S53: 129.1 | T53: 124.1 | U53: 84.9
D54: =1/(D52/D53) -> 0.7721354167 | E54: 1.307954545 | F54: 0.2972972973 | G54: 0.8051831993 | H54: 0.7717041801 | I54: 0.5752625438 | J54: 0.8277310924 | O54: =1/(O52/O53) -> 1.198830409 | P54: 1.523188406 | Q54: 1.307954545 | R54: 1.236018957 | S54: 1.237775647 | T54: 1.825 | U54: 1.849673203
B58: NZD | D58: GBPNZD | E58: NZDJPY | F58: NZDUSD | G58: EURNZD | H58: NZDCAD | I58: NZDCHF | J58: AUDNZD | M58: USD | O58: AUDUSD | P58: GBPUSD | Q58: NZDUSD | R58: USDCAD | S58: USDCHF | T58: USDJPY | U58: EURUSD
C59: High | D59: =[1]!GBPNZD -> 1.95383 | E59: =[1]!NZDJPY -> 73.372 | F59: =[1]!NZDUSD -> 0.83225 | G59: =[1]!EURNZD -> 1.58406 | H59: =[1]!NZDCAD -> 0.82167 | I59: =[1]!NZDCHF -> 0.76902 | J59: =[1]!AUDNZD -> 1.26802 | N59: High | O59: =[1]!AUDUSD -> 1.04864 | P59: =[1]!GBPUSD -> 1.60877 | Q59: =[1]!NZDUSD -> 0.83225 | R59: =[1]!USDCAD -> 0.99223 | S59: =[1]!USDCHF -> 0.93023 | T59: =[1]!USDJPY -> 88.4 | U59: =[1]!EURUSD -> 1.30886
A60: Priemer | B60: =SUM(D66:J66)/7 -> 1.281170258 | C60: Ask | D60: =[2]!GBPNZD -> 1.93255 | E60: =[2]!NZDJPY -> 73.392 | F60: =[2]!NZDUSD -> 0.83211 | G60: =[2]!EURNZD -> 1.57194 | H60: =[2]!NZDCAD -> 0.82186 | I60: =[2]!NZDCHF -> 0.76951 | J60: =[2]!AUDNZD -> 1.26004 | L60: Priemer | M60: =SUM(O66:U66)/7 -> 1.020420138 | N60: Ask | O60: =[2]!AUDUSD -> 1.04811 | P60: =[2]!GBPUSD -> 1.60704 | Q60: =[2]!NZDUSD -> 0.83211 | R60: =[2]!USDCAD -> 0.98779 | S60: =[2]!USDCHF -> 0.92532 | T60: =[2]!USDJPY -> 88.179 | U60: =[2]!EURUSD -> 1.30709
C61: Bid | D61: =[3]!GBPNZD -> 1.93037 | E61: =[3]!NZDJPY -> 73.28 | F61: =[3]!NZDUSD -> 0.8316 | G61: =[3]!EURNZD -> 1.57039 | H61: =[3]!NZDCAD -> 0.82108 | I61: =[3]!NZDCHF -> 0.76867 | J61: =[3]!AUDNZD -> 1.25945 | N61: Bid | O61: =[3]!AUDUSD -> 1.04772 | P61: =[3]!GBPUSD -> 1.60663 | Q61: =[3]!NZDUSD -> 0.8316 | R61: =[3]!USDCAD -> 0.98736 | S61: =[3]!USDCHF -> 0.92422 | T61: =[3]!USDJPY -> 88.144 | U61: =[3]!EURUSD -> 1.30668
A62: Min | B62: =MIN(D66:J66) -> 0.8277310924 | C62: Low | D62: =[4]!GBPNZD -> 1.92997 | E62: =[4]!NZDJPY -> 72.131 | F62: =[4]!NZDUSD -> 0.82125 | G62: =[4]!EURNZD -> 1.57008 | H62: =[4]!NZDCAD -> 0.8123 | I62: =[4]!NZDCHF -> 0.76311 | J62: =[4]!AUDNZD -> 1.25887 | L62: Min | M62: =MIN(O66:U66) -> 0.6838487973 | N62: Low | O62: =[4]!AUDUSD -> 1.03936 | P62: =[4]!GBPUSD -> 1.60081 | Q62: =[4]!NZDUSD -> 0.82125 | R62: =[4]!USDCAD -> 0.98472 | S62: =[4]!USDCHF -> 0.92303 | T62: =[4]!USDJPY -> 87.551 | U62: =[4]!EURUSD -> 1.29963
A64: Max | B64: =MAX(D66:J66) -> 1.825 | C64: Volatilita | D64: 181.3 | E64: 68 | F64: 86.1 | G64: 152.2 | H64: 61.5 | I64: 71.4 | J64: 71.5 | L64: Max | M64: =MAX(O66:U66) -> 1.849673203 | N64: Volatilita | O64: 108.8 | P64: 116.4 | Q64: 86.1 | R64: 76.6 | S64: 93.3 | T64: 45.9 | U64: 127
C65: Dnes | D65: =(D59-D62)*10000 -> 238.6 | E65: =(E59-E62)*100 -> 124.1 | F65: =(F59-F62)*10000 -> 110 | G65: =(G59-G62)*10000 -> 139.8 | H65: =(H59-H62)*10000 -> 93.7 | I65: =(I59-I62)*10000 -> 59.1 | J65: =(J59-J62)*10000 -> 91.5 | N65: Dnes | O65: =(O59-O62)*10000 -> 92.8 | P65: =(P59-P62)*10000 -> 79.6 | Q65: =(Q59-Q62)*10000 -> 110 | R65: =(R59-R62)*10000 -> 75.1 | S65: =(S59-S62)*10000 -> 72 | T65: =(T59-T62)*100 -> 84.9 | U65: =(U59-U62)*10000 -> 92.3
D66: =1/(D64/D65) -> 1.316050745 | E66: 1.825 | F66: 1.277584204 | G66: 0.9185282523 | H66: 1.523577236 | I66: 0.8277310924 | J66: 1.27972028 | O66: =1/(O64/O65) -> 0.8529411765 | P66: 0.6838487973 | Q66: 1.277584204 | R66: 0.9804177546 | S66: 0.7717041801 | T66: 1.849673203 | U66: 0.7267716535

Sheet Poriadok
A2: 17/8/2012 | C2: aud | D2: CADAUD | E2: JPYAUD | F2: NZDAUD | G2: USDAUD | H2: EURAUD | I2: GBPAUD | J2: CHFAUD | N2: cad | O2: AUDCAD | P2: CHFCAD | Q2: JPYCAD | R2: EURCAD | S2: GBPCAD | T2: USDCAD | U2: NZDCAD | X2: EURUSD | Y2: EURNZD | Z2: NZDCAD | AA2: NZDCHF | AB2: AUDCAD | AC2: AUDJPY | AD2: AUDNZD | AE2: AUDUSD | AF2: CADCHF | AG2: CADJPY | AH2: CHFJPY | AI2: EURAUD | AJ2: EURCAD | AK2: EUECHF
A3: 20:00:00 | D3: =0.96669 -> 0.96669 | E3: =1.10721 -> 1.10721 | F3: =0.78494 -> 0.78494 | G3: =0.96259 -> 0.96259 | H3: 1.28042 | I3: 1.51535 | J3: =1.03019 -> 1.03019 | O3: 1.0169 | P3: =0.95083 -> 0.95083 | Q3: =1.15668 -> 1.15668 | R3: 1.2728 | S3: 1.60291 | T3: 1.03743 | U3: 0.81429 | X3: =1.26591 -> 1.26591 | Y3: =1.5468 -> 1.5468 | Z3: =0.78238 -> 0.78238 | AA3: =0.80254 -> 0.80254 | AB3: =0.99502 -> 0.99502 | AC3: =0.7963 -> 0.7963 | AD3: =1.23697 -> 1.23697 | AE3: =1.03957 -> 1.03957 | AF3: =0.92141 -> 0.92141 | AG3: =0.7439 -> 0.7439 | AH3: =0.8327 -> 0.8327 | AI3: =1.21575 -> 1.21575 | AJ3: =1.26709 -> 1.26709 | AK3: =1.20427 -> 1.20427
C5: eur | D5: AUDEUR | E5: CADEUR | F5: CHFEUR | G5: GBPEUR | H5: JPYEUR | I5: USDEUR | J5: NZDEUR | N5: gbp | O5: EURGBP | P5: CADGBP | Q5: AUDGBP | R5: NZDGBP | S5: CHFGBP | T5: JPYGBP | U5: USDGBP | X5: EURGBP | Y5: EURJPY | Z5: GBPCAD | AA5: GBPAUD | AB5: GBPNZD | AC5: GBPCHF | AD5: GBPJPY | AE5: GBPUSD | AF5: NZDJPY | AG5: NZDUSD | AH5: USDCAD | AI5: USDCHF | AJ5: USDJPY | AK5: AUDCHF
D6: =0.83288 -> 0.83288 | E6: 0.81103 | F6: =0.85154 -> 0.85154 | G6: =1.26019 -> 1.26019 | H6: =0.88837 -> 0.88837 | I6: =0.80351 -> 0.80351 | J6: =0.62759 -> 0.62759 | O6: 0.808 | P6: =0.6626 -> 0.6626 | Q6: =0.66967 -> 0.66967 | R6: =0.51518 -> 0.51518 | S6: =0.66156 -> 0.66156 | T6: =0.75826 -> 0.75826 | U6: =0.65256 -> 0.65256 | X6: =0.7969 -> 0.7969 | Y6: 1.0032 | Z6: =1.59549 -> 1.59549 | AA6: =1.58821 -> 1.58821 | AB6: =1.92679 -> 1.92679 | AC6: =1.54818 -> 1.54818 | AD6: =1.2567 -> 1.2567 | AE6: =1.5822 -> 1.5822 | AF6: =0.6442 -> 0.6442 | AG6: =0.80516 -> 0.80516 | AH6: =1.0052 -> 1.0052 | AI6: =0.95116 -> 0.95116 | AJ6: =0.7907 -> 0.7907 | AK6: =0.94476 -> 0.94476
C8: chf | D8: CADCHF | E8: JPYCHF | F8: EURCHF | G8: GBPCHF | H8: USDCHF | I8: AUDCHF | J8: NZDCHF | N8: jpy | O8: AUDJPY | P8: CADJPY | Q8: CHFJPY | R8: EURJPY | S8: GBPJPY | T8: NZDJPY | U8: USDJPY
D9: 1.03865 | E9: =1.0999 -> 1.0999 | F9: 1.2467 | G9: 1.50614 | H9: 0.94664 | I9: 0.9935 | J9: 1.28853 | O9: 0.9109 | P9: 0.8824 | Q9: 0.9483 | R9: 1.1287 | S9: 1.40818 | T9: 0.7197 | U9: 0.87555
C11: nzd | D11: GBPNZD | E11: JPYNZD | F11: USDNZD | G11: EURNZD | H11: CADNZD | I11: CHFNZD | J11: AUDNZD | N11: usd | O11: AUDUSD | P11: GBPUSD | Q11: NZDUSD | R11: CADUSD | S11: CHFUSD | T11: JPYUSD | U11: EURUSD
D12: 1.97419 | E12: 1.38312 | F12: =1.19102 -> 1.19102 | G12: 1.61649 | H12: =1.24817 -> 1.24817 | I12: =0.75319 -> 0.75319 | J12: 1.2685 | O12: 1.0173 | P12: 1.58297 | Q12: 0.81 | R12: =0.9656 -> 0.9656 | S12: =1.08617 -> 1.08617 | T12: =1.157 -> 1.157 | U12: 1.3025
A16: Aktuálny kurz | B16: AUD | D16: CADAUD | E16: JPYAUD | F16: NZDAUD | G16: USDAUD | H16: EURAUD | I16: GBPAUD | J16: CHFAUD | K16: pv | M16: CAD | O16: AUDCAD | P16: CHFCAD | Q16: JPYCAD | R16: EURCAD | S16: GBPCAD | T16: USDCAD | U16: NZDCAD | V16: pv
C17: Ask | D17: =1/[2]!AUDCAD -> 0.9661088998 | E17: =(1/[2]!AUDJPY)*100 -> 1.08173597 | F17: =1/[2]!AUDNZD -> 0.7936255992 | G17: =1/[2]!AUDUSD -> 0.9540983294 | H17: =[2]!EURAUD -> 1.2477 | I17: =[2]!GBPAUD -> 1.53405 | J17: =1/[2]!AUDCHF -> 1.031034127 | K17: =(0.0001/G19)*10000 -> 1.047914964 | N17: Ask | O17: =[2]!AUDCAD -> 1.03508 | P17: =[2]!CADCHF -> 0.93668 | Q17: =(1/[2]!CADJPY)*100 -> 1.1199337 | R17: =[2]!EURCAD -> 1.29099 | S17: =[2]!GBPCAD -> 1.58724 | T17: =1/[2]!USDCAD -> 1.012360927 | U17: =[2]!NZDCAD -> 0.82186 | V17: =(0.0001/T19)*10000 -> 0.9875749532
C18: Bid | D18: =1/[3]!AUDCAD -> 0.9666972787 | E18: =(1/[3]!AUDJPY)*100 -> 1.082930844 | F18: =1/[3]!AUDNZD -> 0.7939973798 | G18: =1/[3]!AUDUSD -> 0.9544534799 | H18: =[3]!EURAUD -> 1.24641 | I18: =[3]!GBPAUD -> 1.53269 | J18: =1/[3]!AUDCHF -> 1.032748453 | N18: Bid | O18: =[3]!AUDCAD -> 1.03445 | P18: =[3]!CADCHF -> 0.93573 | Q18: =(1/[3]!CADJPY)*100 -> 1.120523509 | R18: =[3]!EURCAD -> 1.2904 | S18: =[3]!GBPCAD -> 1.58651 | T18: =1/[3]!USDCAD -> 1.012801815 | U18: =[3]!NZDCAD -> 0.82108
C19: Priemer | D19: =(D17+D18)/2 -> 0.9664030893 | E19: =(E17+E18)/2 -> 1.082333407 | F19: 0.7938114895 | G19: 0.9542759047 | H19: 1.247055 | I19: 1.53337 | J19: 1.03189129 | N19: Priemer | O19: =(O17+O18)/2 -> 1.034765 | P19: =(P17+P18)/2 -> 0.936205 | Q19: 1.120228604 | R19: 1.290695 | S19: 1.586875 | T19: 1.012581371 | U19: 0.82147
C20: spread | D20: =ABS(D17-D18)*10000 -> 5.88378952 | E20: =ABS(E17-E18)*10000 -> 11.94874152 | F20: 3.717806213 | G20: 3.551505636 | H20: 12.9 | I20: 13.6 | J20: 17.1432623 | K20: =SUM(D20:J20) -> 68.74510518 | N20: spread | O20: =ABS(O17-O18)*10000 -> 6.3 | P20: =ABS(P17-P18)*10000 -> 9.5 | Q20: 5.898086582 | R20: 5.9 | S20: 7.3 | T20: 4.408880232 | U20: 7.8 | V20: =SUM(O20:U20) -> 47.10696681
B22: EUR | D22: AUDEUR | E22: CADEUR | F22: CHFEUR | G22: GBPEUR | H22: JPYEUR | I22: USDEUR | J22: NZDEUR | K22: pv | M22: GBP | O22: EURGBP | P22: CADGBP | Q22: AUDGBP | R22: NZDGBP | S22: CHFGBP | T22: JPYGBP | U22: USDGBP | V22: pv
C23: Ask | D23: =1/[2]!EURAUD -> 0.8014747135 | E23: =1/[2]!EURCAD -> 0.7745993385 | F23: =1/[2]!EURCHF -> 0.8273625337 | G23: =1/[2]!EURGBP -> 1.229346971 | H23: =(1/[2]!EURJPY)*100 -> 0.8675208856 | I23: =1/[2]!EURUSD -> 0.7650582592 | J23: =1/[2]!EURNZD -> 0.6361565963 | K23: =(0.0001/I25)*10000 -> 1.306884968 | N23: Ask | O23: =[2]!EURGBP -> 0.81344 | P23: =1/[2]!GBPCAD -> 0.6300244449 | Q23: =1/[2]!GBPAUD -> 0.651869235 | R23: =1/[2]!GBPNZD -> 0.5174510362 | S23: =1/[2]!GBPCHF -> 0.672734734 | T23: =(1/[2]!GBPJPY)*100 -> 0.7053977032 | U23: =1/[2]!GBPUSD -> 0.622262047 | V23: =(0.0001/U25)*10000 -> 1.606834974
C24: Bid | D24: =1/[3]!EURAUD -> 0.8023042177 | E24: =1/[3]!EURCAD -> 0.7749535028 | F24: =1/[3]!EURCHF -> 0.8276432857 | G24: =1/[3]!EURGBP -> 1.229906404 | H24: =(1/[3]!EURJPY)*100 -> 0.8684023134 | I24: =1/[3]!EURUSD -> 0.7652983133 | J24: =1/[3]!EURNZD -> 0.636784493 | N24: Bid | O24: =[3]!EURGBP -> 0.81307 | P24: =1/[3]!GBPCAD -> 0.6303143378 | Q24: =1/[3]!GBPAUD -> 0.6524476574 | R24: =1/[3]!GBPNZD -> 0.5180354025 | S24: =1/[3]!GBPCHF -> 0.6734006734 | T24: =(1/[3]!GBPJPY)*100 -> 0.7061199415 | U24: =1/[3]!GBPUSD -> 0.6224208436
C25: Priemer | D25: =(D23+D24)/2 -> 0.8018894656 | E25: =(E23+E24)/2 -> 0.7747764206 | F25: 0.8275029097 | G25: 1.229626688 | H25: 0.8679615995 | I25: 0.7651782862 | J25: 0.6364705447 | N25: Priemer | O25: =(O23+O24)/2 -> 0.813255 | P25: =(P23+P24)/2 -> 0.6301693914 | Q25: 0.6521584462 | R25: 0.5177432194 | S25: 0.6730677037 | T25: 0.7057588224 | U25: 0.6223414453
C26: spread | D26: =ABS(D23-D24)*10000 -> 8.295042405 | E26: =ABS(E23-E24)*10000 -> 3.541642977 | F26: 2.807520288 | G26: 5.594332336 | H26: 8.814278584 | I26: 2.400540961 | J26: 6.278967163 | K26: =SUM(D26:J26) -> 37.73232471 | N26: spread | O26: =ABS(O23-O24)*10000 -> 3.7 | P26: =ABS(P23-P24)*10000 -> 2.898928118 | Q26: 5.784223552 | R26: 5.843663437 | S26: 6.659394336 | T26: 7.222383082 | U26: 1.58796636 | V26: =SUM(O26:U26) -> 33.69655889
B28: CHF | D28: CADCHF | E28: JPYCHF | F28: EURCHF | G28: GBPCHF | H28: USDCHF | I28: AUDCHF | J28: NZDCHF | K28: pv | M28: JPY | O28: AUDJPY | P28: CADJPY | Q28: CHFJPY | R28: EURJPY | S28: GBPJPY | T28: NZDJPY | U28: USDJPY | V28: pv
C29: Ask | D29: =1/[2]!CADCHF -> 1.067600461 | E29: =(1/[2]!CHFJPY)*100 -> 1.048163094 | F29: =[2]!EURCHF -> 1.20866 | G29: =[2]!GBPCHF -> 1.48647 | H29: =[2]!USDCHF -> 0.92532 | I29: =[2]!AUDCHF -> 0.9699 | J29: =1/[2]!NZDCHF -> 1.299528271 | K29: =(0.0001/H31)*10000 -> 1.081349957 | N29: Ask | O29: =[2]!AUDJPY/100 -> 0.92444 | P29: =[2]!CADJPY/100 -> 0.89291 | Q29: =[2]!CHFJPY/100 -> 0.95405 | R29: =[2]!EURJPY/100 -> 1.15271 | S29: =[2]!GBPJPY/100 -> 1.41764 | T29: =[2]!NZDJPY/100 -> 0.73392 | U29: =[2]!USDJPY/100 -> 0.88179 | V29: =(0.0001/U31)*10000 -> 1.134281971
C30: Bid | D30: =1/[3]!CADCHF -> 1.068684343 | E30: =(1/[3]!CHFJPY)*100 -> 1.049494144 | F30: =[3]!EURCHF -> 1.20825 | G30: =[3]!GBPCHF -> 1.485 | H30: =[3]!USDCHF -> 0.92422 | I30: =[3]!AUDCHF -> 0.96829 | J30: =1/[3]!NZDCHF -> 1.300948391 | N30: Bid | O30: =[3]!AUDJPY/100 -> 0.92342 | P30: =[3]!CADJPY/100 -> 0.89244 | Q30: =[3]!CHFJPY/100 -> 0.95284 | R30: =[3]!EURJPY/100 -> 1.15154 | S30: =[3]!GBPJPY/100 -> 1.41619 | T30: =[3]!NZDJPY/100 -> 0.7328 | U30: =[3]!USDJPY/100 -> 0.88144
C31: Priemer | D31: =(D29+D30)/2 -> 1.068142402 | E31: =(E29+E30)/2 -> 1.048828619 | F31: 1.208455 | G31: 1.485735 | H31: 0.92477 | I31: 0.969095 | J31: 1.300238331 | N31: Priemer | O31: =(O29+O30)/2 -> 0.92393 | P31: =(P29+P30)/2 -> 0.892675 | Q31: 0.953445 | R31: 1.152125 | S31: 1.416915 | T31: 0.73336 | U31: 0.881615
C32: spread | D32: =ABS(D29-D30)*10000 -> 10.83881502 | E32: =ABS(E29-E30)*10000 -> 13.31049645 | F32: 4.1 | G32: 14.7 | H32: 11 | I32: 16.1 | J32: 14.2012014 | K32: =SUM(D32:J32) -> 84.25051287 | N32: spread | O32: =ABS(O29-O30)*10000 -> 10.2 | P32: =ABS(P29-P30)*10000 -> 4.7 | Q32: 12.1 | R32: 11.7 | S32: 14.5 | T32: 11.2 | U32: 3.5 | V32: =SUM(O32:U32) -> 67.9
B34: NZD | D34: GBPNZD | E34: JPYNZD | F34: USDNZD | G34: EURNZD | H34: CADNZD | I34: CHFNZD | J34: AUDNZD | K34: pv | M34: USD | O34: AUDUSD | P34: GBPUSD | Q34: NZDUSD | R34: CADUSD | S34: CHFUSD | T34: JPYUSD | U34: EURUSD | V34: pv
C35: Ask | D35: =[2]!GBPNZD -> 1.93255 | E35: =(1/[2]!NZDJPY)*100 -> 1.362546327 | F35: =1/[2]!NZDUSD -> 1.20176419 | G35: =[2]!EURNZD -> 1.57194 | H35: =1/[2]!NZDCAD -> 1.216752245 | I35: =[2]!NZDCHF -> 0.76951 | J35: =[2]!AUDNZD -> 1.26004 | K35: =(0.0001/F37)*10000 -> 0.8318549218 | N35: Ask | O35: =[2]!AUDUSD -> 1.04811 | P35: =[2]!GBPUSD -> 1.60704 | Q35: =[2]!NZDUSD -> 0.83211 | R35: =[2]!USDCAD -> 0.98779 | S35: =1/[2]!USDCHF -> 1.080707215 | T35: =(1/[2]!USDJPY)*100 -> 1.134056862 | U35: =[2]!EURUSD -> 1.30709 | V35: 1
C36: Bid | D36: =[3]!GBPNZD -> 1.93037 | E36: =(1/[3]!NZDJPY)*100 -> 1.364628821 | F36: =1/[3]!NZDUSD -> 1.202501203 | G36: =[3]!EURNZD -> 1.57039 | H36: =1/[3]!NZDCAD -> 1.217908121 | I36: =[3]!NZDCHF -> 0.76867 | J36: =[3]!AUDNZD -> 1.25945 | N36: Bid | O36: =[3]!AUDUSD -> 1.04772 | P36: =[3]!GBPUSD -> 1.60663 | Q36: =[3]!NZDUSD -> 0.8316 | R36: =[3]!USDCAD -> 0.98736 | S36: =1/[3]!USDCHF -> 1.081993465 | T36: =(1/[3]!USDJPY)*100 -> 1.13450717 | U36: =[3]!EURUSD -> 1.30668
C37: Priemer | D37: =(D35+D36)/2 -> 1.93146 | E37: =(E35+E36)/2 -> 1.363587574 | F37: =(F35+F36)/2 -> 1.202132696 | G37: 1.571165 | H37: 1.217330183 | I37: 0.76909 | J37: 1.259745 | N37: Priemer | O37: =(O35+O36)/2 -> 1.047915 | P37: =(P35+P36)/2 -> 1.606835 | Q37: 0.831855 | R37: 0.987575 | S37: 1.08135034 | T37: 1.134282016 | U37: 1.306885
C38: spread | D38: =ABS(D35-D36)*10000 -> 21.8 | E38: =ABS(E35-E36)*10000 -> 20.82494386 | F38: 7.370126705 | G38: 15.5 | H38: 11.55876103 | I38: 8.4 | J38: 5.9 | K38: =SUM(D38:J38) -> 91.3538316 | N38: spread | O38: =ABS(O35-O36)*10000 -> 3.9 | P38: =ABS(P35-P36)*10000 -> 4.1 | Q38: 5.1 | R38: 4.3 | S38: 12.86249958 | T38: 4.503084743 | U38: 4.1 | V38: =SUM(O38:U38) -> 38.86558432
A41: Rozdiely | C41: aud | D41: CADAUD | E41: JPYAUD | F41: NZDAUD | G41: USDAUD | H41: EURAUD | I41: GBPAUD | J41: CHFAUD | N41: cad | O41: AUDCAD | P41: CHFCAD | Q41: JPYCAD | R41: EURCAD | S41: GBPCAD | T41: USDCAD | U41: NZDCAD
C42: =(D42+E42+F42+G42+H42+I42+J42) -> -776.9239996 | D42: =((D19-D3))*10000 -> -2.869107288 | E42: =(E19-E3)*10000 -> -248.7659304 | F42: =((F19-F3))*10000 -> 88.71489498 | G42: =((G19-G3))*10000 -> -83.14095344 | H42: =((H19-H3))*10000 -> -333.65 | I42: =((I3-I19))*10000 -> -180.2 | J42: =((J3-J19))*10000 -> -17.01290344 | N42: =O42+P42+Q42+R42+S42+T42+U42 -> 299.2723332 | O42: =(O19-O3)*10000 -> 178.65 | P42: =(P3-P19)*10000 -> 146.25 | Q42: =(Q19-Q3)*10000 -> -364.5139575 | R42: =(R19-R3)*10000 -> 178.95 | S42: =(S19-S3)*10000 -> -160.35 | T42: =(T3-T19)*10000 -> 248.4862907 | U42: =(U19-U3)*10000 -> 71.8
C44: eur | D44: AUDEUR | E44: CADEUR | F44: CHFEUR | G44: GBPEUR | H44: JPYEUR | I44: USDEUR | J44: NZDEUR | N44: gbp | O44: EURGBP | P44: CADGBP | Q44: AUDGBP | R44: NZDGBP | S44: CHFGBP | T44: JPYGBP | U44: USDGBP
C45: =D45+E45+F45+G45+H45+I45+J45 -> -1717.040861 | D45: =((D25-D6))*10000 -> -309.9053441 | E45: =((E25-E6))*10000 -> -362.5357936 | F45: =((F25-F6))*10000 -> -240.3709027 | G45: =((G25-G6))*10000 -> -305.6331249 | H45: =(H25-H6)*10000 -> -204.0840051 | I45: =((I25-I6))*10000 -> -383.3171377 | J45: =((J25-J6))*10000 -> 88.80544666 | N45: =O45+P45+Q45+R45+S45+T45+U45 -> -1133.359717 | O45: =(O25-O6)*10000 -> 52.55 | P45: -324.3060865 | Q45: =(Q25-Q6)*10000 -> -175.1155379 | R45: =(R25-R6)*10000 -> 25.63219368 | S45: =(S25-S6)*10000 -> 115.0770368 | T45: =(T25-T6)*10000 -> -525.0117762 | U45: -302.1855469
C47: chf | D47: CADCHF | E47: JPYCHF | F47: EURCHF | G47: GBPCHF | H47: USDCHF | I47: AUDCHF | J47: NZDCHF | N47: jpy | O47: AUDJPY | P47: CADJPY | Q47: CHFJPY | R47: EURJPY | S47: GBPJPY | T47: NZDJPY | U47: USDJPY
C48: =D48+E48+F48+G48+H48+I48+J48 -> -1737.804516 | D48: =(D9-D31)*10000 -> -294.9240195 | E48: =(E31-E9)*10000 -> -510.71381 | F48: -382.45 | G48: -204.05 | H48: -218.7 | I48: -244.05 | J48: 117.0833131 | N48: =O48+P48+Q48+R48+S48+T48+U48 -> 803.35 | O48: =(O31-O9)*10000 -> 130.3 | P48: 102.75 | Q48: 51.45 | R48: 234.25 | S48: 87.35 | T48: 136.6 | U48: 60.65
C50: nzd | D50: GBPNZD | E50: JPYNZD | F50: USDNZD | G50: EURNZD | H50: CADNZD | I50: CHFNZD | J50: AUDNZD | N50: usd | O50: AUDUSD | P50: GBPUSD | Q50: NZDUSD | R50: CADUSD | S50: CHFUSD | T50: JPYUSD | U50: EURUSD
C51: =D51+E51+F51+G51+H51+I51+J51 -> -1201.695471 | D51: =(D37-D12)*10000 -> -427.3 | E51: -195.3242623 | F51: 111.1269617 | G51: -453.25 | H51: -308.3981704 | I51: 159 | J51: -87.55 | N51: =O51+P51+Q51+R51+S51+T51+U51 -> 312.0735563 | O51: =(O37-O12)*10000 -> 306.15 | P51: =(P37-P12)*10000 -> 238.65 | Q51: =(Q37-Q12)*10000 -> 218.55 | R51: =(R12-R37)*10000 -> -219.75 | S51: =(S37-S12)*10000 -> -48.1966022 | T51: =(T37-T12)*10000 -> -227.1798415 | U51: =(U37-U12)*10000 -> 43.85
W53: =-1 -> -1
W54: 1
C55: aud | D55: eur | E55: chf | F55: nzd | G55: cad | H55: gbp | I55: jpy | J55: usd | K55: AVG | L55: SUM | N55: aud | O55: eur | P55: chf | Q55: nzd | R55: cad | S55: gbp | T55: jpy | U55: usd
C56: =C42 -> -776.9239996 | D56: =C45 -> -1717.040861 | E56: =C48 -> -1737.804516 | F56: =C51 -> -1201.695471 | G56: =N42 -> 299.2723332 | H56: =N45 -> -1133.359717 | I56: =N48 -> 803.35 | J56: =N51 -> 312.0735563 | K56: =(C56+D56+E56+F56+G56+H56+I56+J56)/8 -> -644.0160845 | L56: =SUM(C56:J56) -> -5152.128676 | M56: =N56+O56+P56+Q56+R56+S56+T56+U56 -> 7981.520455 | N56: =ABS(C56) -> 776.9239996 | O56: 1717.040861 | P56: 1737.804516 | Q56: 1201.695471 | R56: 299.2723332 | S56: 1133.359717 | T56: 803.35 | U56: 312.0735563 | V56: =SUM(N56:U56) -> 7981.520455 | Y56: AUDCHF | Z56: AUDCAD | AA56: AUDNZD | AB56: AUDGBP | AC56: AUDJPY | AD56: AUDUSD | AE56: AUDEUR | AF56: CADAUD | AG56: CADCHF | AH56: CADEUR | AI56: CADNZD | AJ56: CADGBP | AK56: CADJPY | AL56: CADUSD | AM56: CHFAUD | AN56: CHFEUR | AO56: CHFCAD | AP56: CHFNZD | AQ56: CHFGBP | AR56: CHFJPY | AS56: CHFUSD | AT56: EURAUD | AU56: EURCHF | AV56: EURCAD | AW56: EURNZD | AX56: EURGBP | AY56: EURJPY | AZ56: EURUSD | BA56: GBPAUD | BB56: GBPCAD | BC56: GBPCHF | BD56: GBPEUR | BE56: GBPNZD | BF56: GBPJPY | BG56: GBPUSD | BH56: JPYAUD | BI56: JPYCHF | BJ56: JPYCAD | BK56: JPYEUR | BL56: JPYGBP | BM56: JPYUSD | BN56: JPYNZD | BO56: NZDAUD | BP56: NZDCAD | BQ56: NZDEUR | BR56: NZDCHF | BS56: NZDJPY | BT56: NZDGBP | BU56: NZDUSD | BV56: USDAUD | BW56: USDCAD | BX56: USDCHF | BY56: USDEUR | BZ56: USDGBP | CA56: USDNZD | CB56: USDJPY
B57: MAX | C57: 0.2452604868 | D57: -0.1671617282 | E57: -0.1772018866 | F57: 0.003233203288 | G57: 0.1257911469 | H57: 0.1230044498 | I57: 0.2458640773 | J57: 0.125001417 | N57: =N56/$V$56 -> 0.09734035062 | O57: =O56/$V$56 -> 0.2151270389 | P57: 0.217728505 | Q57: 0.1505597183 | R57: 0.03749565449 | S57: 0.1419979719 | T57: 0.1006512487 | U57: 0.03909951219 | Y57: =I48 -> -244.05 | Z57: =O42 -> 178.65 | AA57: =J51 -> -87.55 | AB57: =Q45 -> -175.1155379 | AC57: =O48 -> 130.3 | AD57: =O51 -> 306.15 | AE57: =D45 -> -309.9053441 | AF57: =D42 -> -2.869107288 | AG57: =+D48 -> -294.9240195 | AH57: =E45 -> -362.5357936 | AI57: =H51 -> -308.3981704 | AJ57: =P45 -> -324.3060865 | AK57: =P48 -> 102.75 | AL57: =R51 -> -219.75 | AM57: =J42 -> -17.01290344 | AN57: =F45 -> -240.3709027 | AO57: =P42 -> 146.25 | AP57: =I51 -> 159 | AQ57: =S45 -> 115.0770368 | AR57: =Q48 -> 51.45 | AS57: =S51 -> -48.1966022 | AT57: =H42 -> -333.65 | AU57: =F48 -> -382.45 | AV57: =R42 -> 178.95 | AW57: =G51 -> -453.25 | AX57: =O45 -> 52.55 | AY57: =R48 -> 234.25 | AZ57: =U51 -> 43.85 | BA57: =I42 -> -180.2 | BB57: =S42 -> -160.35 | BC57: =G48 -> -204.05 | BD57: =G45 -> -305.6331249 | BE57: =D51 -> -427.3 | BF57: =S48 -> 87.35 | BG57: =P51 -> 238.65 | BH57: =E42 -> -248.7659304 | BI57: =E48 -> -510.71381 | BJ57: =Q42 -> -364.5139575 | BK57: =H45 -> -204.0840051 | BL57: =T45 -> -525.0117762 | BM57: =T51 -> -227.1798415 | BN57: =E51 -> -195.3242623 | BO57: =F42 -> 88.71489498 | BP57: =U42 -> 71.8 | BQ57: =J45 -> 88.80544666 | BR57: =J48 -> 117.0833131 | BS57: =T48 -> 136.6 | BT57: =R45 -> 25.63219368 | BU57: =Q51 -> 218.55 | BV57: =G42 -> -83.14095344 | BW57: =T42 -> 248.4862907 | BX57: =H48 -> -218.7 | BY57: =I45 -> -383.3171377 | BZ57: =U45 -> -302.1855469 | CA57: =F51 -> 111.1269617 | CB57: =U48 -> 60.65
B58: MIN | C58: 0.01039161848 | D58: -0.2513482416 | E58: -0.2341670137 | F58: -0.03898927849 | G58: 0.0428435167 | H58: 0.02579608793 | I58: 0.06532584088 | J58: -0.164919241 | N58: =(N57/25)*100 -> 0.3893614025 | O58: =(O57/25)*100 -> 0.8605081556 | P58: 0.8709140201 | Q58: 0.6022388731 | R58: 0.1499826179 | S58: 0.5679918874 | T58: 0.4026049946 | U58: 0.1563980487
C59: =IF(C56<0,N57*$W$53,N57*$W$54) -> -0.09734035062 | D59: -0.2151270389 | E59: -0.217728505 | F59: -0.1505597183 | G59: 0.03749565449 | H59: -0.1419979719 | I59: 0.1006512487 | J59: 0.03909951219 | K59: =(C59+D59+E59+F59+G59+H59+I59+J59)/8 -> -0.08068839617 | L59: =C59+D59+E59+F59+G59+H59+I59+J59 -> -0.6455071693
C60: =IF(C56<0,N58*$W$53,N58*$W$54) -> -0.3893614025 | D60: -0.8605081556 | E60: -0.8709140201 | F60: -0.6022388731 | G60: 0.1499826179 | H60: -0.5679918874 | I60: 0.4026049946 | J60: 0.1563980487
Y67: =AM56 -> CHFAUD | Z67: =AF56 -> CADAUD | AA67: =BO56 -> NZDAUD | AB67: =BA56 -> GBPAUD | AC67: =BH56 -> JPYAUD | AD67: =BV56 -> USDAUD | AE67: =AT56 -> EURAUD | AF67: =Z56 -> AUDCAD | AG67: =AO56 -> CHFCAD | AH67: =AV56 -> EURCAD | AI67: =BP56 -> NZDCAD | AJ67: =BB56 -> GBPCAD | AK67: =BJ56 -> JPYCAD | AL67: =BW56 -> USDCAD | AM67: =Y56 -> AUDCHF | AN67: =AU56 -> EURCHF | AO67: =AG56 -> CADCHF | AP67: =BR56 -> NZDCHF | AQ67: =BC56 -> GBPCHF | AR67: =BI56 -> JPYCHF | AS67: =BX56 -> USDCHF | AT67: =AE56 -> AUDEUR | AU67: =AN56 -> CHFEUR | AV67: =AH56 -> CADEUR | AW67: =BQ56 -> NZDEUR | AX67: =BD56 -> GBPEUR | AY67: =BK56 -> JPYEUR | AZ67: =BY56 -> USDEUR | BA67: =AB56 -> AUDGBP | BB67: =AJ56 -> CADGBP | BC67: =AQ56 -> CHFGBP | BD67: =AX56 -> EURGBP | BE67: =BT56 -> NZDGBP | BF67: =BL56 -> JPYGBP | BG67: =BZ56 -> USDGBP | BH67: =AC56 -> AUDJPY | BI67: =AR56 -> CHFJPY | BJ67: =AK56 -> CADJPY | BK67: =AY56 -> EURJPY | BL67: =BF56 -> GBPJPY | BM67: =CB56 -> USDJPY | BN67: =BS56 -> NZDJPY | BO67: =AA56 -> AUDNZD | BP67: =AI56 -> CADNZD | BQ67: =AW56 -> EURNZD | BR67: =AP56 -> CHFNZD | BS67: =BN56 -> JPYNZD | BT67: =BE56 -> GBPNZD | BU67: =CA56 -> USDNZD | BV67: =AD56 -> AUDUSD | BW67: =AL56 -> CADUSD | BX67: =AS56 -> CHFUSD | BY67: =AZ56 -> EURUSD | BZ67: =BG56 -> GBPUSD | CA67: =BU56 -> NZDUSD | CB67: =BM56 -> JPYUSD
D68: JPYAUD | E68: GBPAUD | F68: CADAUD | G68: USDAUD | H68: EURAUD | I68: CHFAUD | J68: NZDAUD | Y68: =AM57 -> -17.01290344 | Z68: =AF57 -> -2.869107288 | AA68: =BO57 -> 88.71489498 | AB68: =BA57 -> -180.2 | AC68: =BH57 -> -248.7659304 | AD68: =BV57 -> -83.14095344 | AE68: =AT57 -> -333.65 | AF68: =Z57 -> 178.65 | AG68: =AO57 -> 146.25 | AH68: =AV57 -> 178.95 | AI68: =BP57 -> 71.8 | AJ68: =BB57 -> -160.35 | AK68: =BJ57 -> -364.5139575 | AL68: =BW57 -> 248.4862907 | AM68: =Y57 -> -244.05 | AN68: =AU57 -> -382.45 | AO68: =AG57 -> -294.9240195 | AP68: =BR57 -> 117.0833131 | AQ68: =BC57 -> -204.05 | AR68: =BI57 -> -510.71381 | AS68: =BX57 -> -218.7 | AT68: =AE57 -> -309.9053441 | AU68: =AN57 -> -240.3709027 | AV68: =AH57 -> -362.5357936 | AW68: =BQ57 -> 88.80544666 | AX68: =BD57 -> -305.6331249 | AY68: =BK57 -> -204.0840051 | AZ68: =BY57 -> -383.3171377 | BA68: =AB57 -> -175.1155379 | BB68: =AJ57 -> -324.3060865 | BC68: =AQ57 -> 115.0770368 | BD68: =AX57 -> 52.55 | BE68: =BT57 -> 25.63219368 | BF68: =BL57 -> -525.0117762 | BG68: =BZ57 -> -302.1855469 | BH68: =AC57 -> 130.3 | BI68: =AR57 -> 51.45 | BJ68: =AK57 -> 102.75 | BK68: =AY57 -> 234.25 | BL68: =BF57 -> 87.35 | BM68: =CB57 -> 60.65 | BN68: =BS57 -> 136.6 | BO68: =AA57 -> -87.55 | BP68: =AI57 -> -308.3981704 | BQ68: =AW57 -> -453.25 | BR68: =AP57 -> 159 | BS68: =BN57 -> -195.3242623 | BT68: =BE57 -> -427.3 | BU68: =CA57 -> 111.1269617 | BV68: =AD57 -> 306.15 | BW68: =AL57 -> -219.75 | BX68: =AS57 -> -48.1966022 | BY68: =AZ57 -> 43.85 | BZ68: =BG57 -> 238.65 | CA68: =BU57 -> 218.55 | CB68: =BM57 -> -227.1798415
D69: =E42 -> -248.7659304 | E69: =I42 -> -180.2 | F69: =D42 -> -2.869107288 | G69: =G42 -> -83.14095344 | H69: =H42 -> -333.65 | I69: =J42 -> -17.01290344 | J69: =F42 -> 88.71489498
C108: =D108/8 -> 997.6900569 | D108: =M56 -> 7981.520455
Y258: AUDCHF | Z258: EURUSD | AA258: EURNZD | AB258: NZDCAD | AC258: NZDCHF
Y259: =(I31-AK6)*10000 -> 243.35 | Z259: =(U37-X3)*10000 -> 409.75 | AA259: =(G37-Y3)*10000 -> 243.65 | AB259: =(U19-Z3)*10000 -> 390.9 | AC259: =(J31-AA3)*10000 -> 4976.983313
Y260: =E56 -> -1737.804516 | Z260: =D56 -> -1717.040861 | AA260: =D56 -> -1717.040861 | AB260: =G56 -> 299.2723332 | AC260: =F56 -> -1201.695471
Y261: =ABS(Y259)/(ABS(Y259)+ABS(Y260)) -> 0.1228324182 | Z261: 0.1926611626 | AA261: 0.1242674227 | AB261: 0.5663802809 | AC261: 0.8055093147
Y262: =ABS(Y260)/(ABS(Y259)+ABS(Y260)) -> 0.8771675818 | Z262: 0.8073388374 | AA262: 0.8757325773 | AB262: 0.4336197191 | AC262: 0.1944906853
Y263: =IF($C$56<0,Y261*$W$53,Y261*$W$54) -> -0.1228324182 | Z263: =IF($J$56<0,Z261*$W$53,Z261*$W$54) -> 0.1926611626 | AA263: =IF($F$56<0,AA261*$W$53,AA261*$W$54) -> -0.1242674227 | AB263: =IF($F$56<0,AB261*$W$53,AB261*$W$54) -> -0.5663802809 | AC263: =IF($E$56<0,AC261*$W$53,AC261*$W$54) -> -0.8055093147
Y264: =IF($E$56<0,Y262*$W$53,Y262*$W$54) -> -0.8771675818 | Z264: =IF($D$56<0,Z262*$W$53,Z262*$W$54) -> -0.8073388374 | AA264: =IF($D$56<0,AA262*$W$53,AA262*$W$54) -> -0.8757325773 | AB264: =IF($G$56<0,AB262*$W$53,AB262*$W$54) -> 0.4336197191 | AC264: =IF($F$56<0,AC262*$W$53,AC262*$W$54) -> -0.1944906853
X276: USDJPY
X277: =(U31-AJ6)*10000 -> 909.15
B278: AUDCAD | C278: AUDJPY | D278: AUDNZD | E278: AUDUSD | F278: CADCHF | G278: CADJPY | H278: CHFJPY | I278: EURAUD | J278: EURCAD | K278: EURCHF | L278: EURGBP | M278: EURJPY | N278: GBPCAD | O278: GBPAUD | P278: GBPNZD | Q278: GBPCHF | R278: GBPJPY | S278: GBPUSD | T278: NZDJPY | U278: NZDUSD | V278: USDCAD | W278: USDCHF | X278: =J56 -> 312.0735563
B279: =(O19-AB3)*10000 -> 397.45 | C279: =(O31-AC3)*10000 -> 1276.3 | D279: =(J37-AD3)*10000 -> 227.75 | E279: =(O37-AE3)*10000 -> 83.45 | F279: =(D31-AF3)*10000 -> 1467.32402 | G279: =(P31-AG3)*10000 -> 1487.75 | H279: =(Q31-AH3)*10000 -> 1207.45 | I279: =(H19-AI3)*10000 -> 313.05 | J279: =(R19-AJ3)*10000 -> 236.05 | K279: =(F31-AK3)*10000 -> 41.85 | L279: =(O25-X6)*10000 -> 163.55 | M279: =(R31-Y6)*10000 -> 1489.25 | N279: =(S19-Z6)*10000 -> -86.15 | O279: =(I19-AA6)*10000 -> -548.4 | P279: =(D37-AB6)*10000 -> 46.7 | Q279: =(G31-AC6)*10000 -> -624.45 | R279: =(S31-AD6)*10000 -> 1602.15 | S279: =(P37-AE6)*10000 -> 246.35 | T279: =(T31-AF6)*10000 -> 891.6 | U279: =(Q37-AG6)*10000 -> 266.95 | V279: =(T19-AH6)*10000 -> 73.81370929 | W279: =(H31-AI6)*10000 -> -263.9 | X279: 0.7444582897
B280: =G56 -> 299.2723332 | C280: =I56 -> 803.35 | E280: =J56 -> 312.0735563 | F280: =G56 -> 299.2723332 | G280: =I56 -> 803.35 | H280: =I56 -> 803.35 | I280: =D56 -> -1717.040861 | J280: =D56 -> -1717.040861 | K280: =D56 -> -1717.040861 | L280: =D56 -> -1717.040861 | M280: =D56 -> -1717.040861 | N280: =H56 -> -1133.359717 | O280: =H56 -> -1133.359717 | P280: =F56 -> -1201.695471 | Q280: =H56 -> -1133.359717 | R280: =H56 -> -1133.359717 | S280: =H56 -> -1133.359717 | T280: =F56 -> -1201.695471 | U280: =F56 -> -1201.695471 | V280: =J56 -> 312.0735563 | W280: =J56 -> 312.0735563 | X280: 0.2555417103
B281: =ABS(B279)/(ABS(B279)+ABS(B280)) -> 0.5704568105 | C281: 0.6137090376 | D281: =ABS(D279)/(ABS(D279)+ABS(D280)) ->  | E281: 0.2109861693 | F281: 0.8305938237 | G281: 0.6493605692 | H281: 0.6004823951 | I281: 0.1542049206 | J281: 0.1208597125 | K281: 0.02379340351 | L281: 0.08696734806 | M281: 0.4644775114 | N281: 0.07064314355 | O281: 0.3260870114 | P281: 0.0374080178 | Q281: 0.3552432291 | R281: 0.5856860936 | S281: 0.1785520512 | T281: 0.4259312707 | U281: 0.1817661275 | V281: 0.1912830919 | W281: 0.4581807569 | X281: =IF($I$56<0,X279*$W$53,X279*$W$54) -> 0.7444582897
B282: =ABS(B280)/(ABS(B279)+ABS(B280)) -> 0.4295431895 | C282: 0.3862909624 | E282: 0.7890138307 | F282: 0.1694061763 | G282: 0.3506394308 | H282: 0.3995176049 | I282: 0.8457950794 | J282: 0.8791402875 | K282: 0.9762065965 | L282: 0.9130326519 | M282: 0.5355224886 | N282: 0.9293568564 | O282: 0.6739129886 | P282: 0.9625919822 | Q282: 0.6447567709 | R282: 0.4143139064 | S282: 0.8214479488 | T282: 0.5740687293 | U282: 0.8182338725 | V282: 0.8087169081 | W282: 0.5418192431 | X282: =IF($J$56<0,X280*$W$53,X280*$W$54) -> 0.2555417103
B283: =IF($C$56<0,B281*$W$53,B281*$W$54) -> -0.5704568105 | C283: =IF($C$56<0,C281*$W$53,C281*$W$54) -> -0.6137090376 | D283: =IF($C$56<0,D281*$W$53,D281*$W$54) ->  | E283: -0.2109861693 | F283: =IF($E$56<0,F281*$W$53,F281*$W$54) -> -0.8305938237 | G283: =IF($G$56<0,G281*$W$53,G281*$W$54) -> 0.6493605692 | H283: =IF($E$56<0,H281*$W$53,H281*$W$54) -> -0.6004823951 | I283: =IF($C$56<0,I281*$W$53,I281*$W$54) -> -0.1542049206 | J283: =IF($G$56<0,J281*$W$53,J281*$W$54) -> 0.1208597125 | K283: =IF($E$56<0,K281*$W$53,K281*$W$54) -> -0.02379340351 | L283: =IF($H$56<0,L281*$W$53,L281*$W$54) -> -0.08696734806 | M283: =IF($I$56<0,M281*$W$53,M281*$W$54) -> 0.4644775114 | N283: =IF($G$56<0,N281*$W$53,N281*$W$54) -> 0.07064314355 | O283: =IF($C$56<0,O281*$W$53,O281*$W$54) -> -0.3260870114 | P283: =IF($H$56<0,P281*$W$53,P281*$W$54) -> -0.0374080178 | Q283: =IF($E$56<0,Q281*$W$53,Q281*$W$54) -> -0.3552432291 | R283: =IF($I$56<0,R281*$W$53,R281*$W$54) -> 0.5856860936 | S283: =IF($J$56<0,S281*$W$53,S281*$W$54) -> 0.1785520512 | T283: =IF($I$56<0,T281*$W$53,T281*$W$54) -> 0.4259312707 | U283: =IF($J$56<0,U281*$W$53,U281*$W$54) -> 0.1817661275 | V283: =IF($G$56<0,V281*$W$53,V281*$W$54) -> 0.1912830919 | W283: =IF($E$56<0,W281*$W$53,W281*$W$54) -> -0.4581807569
B284: =IF($G$56<0,B282*$W$53,B282*$W$54) -> 0.4295431895 | C284: =IF($I$56<0,C282*$W$53,C282*$W$54) -> 0.3862909624 | D284: =IF($F$56<0,D282*$W$53,D282*$W$54) ->  | E284: =IF($J$56<0,E282*$W$53,E282*$W$54) -> 0.7890138307 | F284: =IF($G$56<0,F282*$W$53,F282*$W$54) -> 0.1694061763 | G284: =IF($I$56<0,G282*$W$53,G282*$W$54) -> 0.3506394308 | H284: =IF($I$56<0,H282*$W$53,H282*$W$54) -> 0.3995176049 | I284: =IF($D$56<0,I282*$W$53,I282*$W$54) -> -0.8457950794 | J284: =IF($D$56<0,J282*$W$53,J282*$W$54) -> -0.8791402875 | K284: -0.9762065965 | L284: -0.9130326519 | M284: -0.5355224886 | N284: =IF($H$56<0,N282*$W$53,N282*$W$54) -> -0.9293568564 | O284: =IF($H$56<0,O282*$W$53,O282*$W$54) -> -0.6739129886 | P284: =IF($F$56<0,P282*$W$53,P282*$W$54) -> -0.9625919822 | Q284: =IF($H$56<0,Q282*$W$53,Q282*$W$54) -> -0.6447567709 | R284: =IF($H$56<0,R282*$W$53,R282*$W$54) -> -0.4143139064 | S284: =IF($H$56<0,S282*$W$53,S282*$W$54) -> -0.8214479488 | T284: =IF($F$56<0,T282*$W$53,T282*$W$54) -> -0.5740687293 | U284: -0.8182338725 | V284: =IF($J$56<0,V282*$W$53,V282*$W$54) -> 0.8087169081 | W284: 0.5418192431
B288: IF(C56<0;N57*$W$53;N57*$W$54)
